{"text_format":"3","workbook":"xlsx","n_sheets":4,"sheets":["SAMMANFATTNING BUDGET HITTILS","SAMMANFATTNING MÅNADSUTGIFTER","SPECIFICERADE UTGIFTER","VÄLGÖRENHET OCH SPONSRING"],"not_rendered":{"defined_names":15},"read":"whole","date_system":"1900"}

{"sheet":"SAMMANFATTNING BUDGET HITTILS","index":0,"n_rows":17,"n_cols":7,"rows_kept":17,"merged":[[1,1,1,4]]}
[null,"SAMMANFATTNING MÅNADSUTGIFTER"]
[null,"VERKLIG jmf med Budget hittills i år",{"$nulls":3},"år",{"$f":"YEAR(TODAY())","v":2019}]
[]
[null,"Huvudbokskod","Kontorubrik","Verklig","Budget","Återstående SEK","Återstående %"]
[null,1000,"Annonsering",{"$f":"SUMIF(SammanfattningMånadsutgifter[Huvudbokskod],TabellHittillsIÅr[[#This Row],[Huvudbokskod]],SammanfattningMånadsutgifter[Summa])","v":{"v":0,"d":"0.00 kr"}},{"v":100000,"d":"100,000.00 kr"},{"$f":"IF(TabellHittillsIÅr[[#This Row],[Budget]]=\"\",\"\",TabellHittillsIÅr[[#This Row],[Budget]]-TabellHittillsIÅr[[#This Row],[Verklig]])","v":{"v":100000,"d":"100,000.00 kr"}},{"$f":"IFERROR(TabellHittillsIÅr[[#This Row],[Återstående SEK]]/TabellHittillsIÅr[[#This Row],[Budget]],\"\")","v":{"v":1,"d":"100.00%"}}]
[null,2000,"Kontorsutrustning",{"$f":"SUMIF(SammanfattningMånadsutgifter[Huvudbokskod],TabellHittillsIÅr[[#This Row],[Huvudbokskod]],SammanfattningMånadsutgifter[Summa])","v":{"v":0,"d":"0.00 kr"}},{"v":100000,"d":"100,000.00 kr"},{"$f":"IF(TabellHittillsIÅr[[#This Row],[Budget]]=\"\",\"\",TabellHittillsIÅr[[#This Row],[Budget]]-TabellHittillsIÅr[[#This Row],[Verklig]])","v":{"v":100000,"d":"100,000.00 kr"}},{"$f":"IFERROR(TabellHittillsIÅr[[#This Row],[Återstående SEK]]/TabellHittillsIÅr[[#This Row],[Budget]],\"\")","v":{"v":1,"d":"100.00%"}}]
[null,3000,"Skrivare",{"$f":"SUMIF(SammanfattningMånadsutgifter[Huvudbokskod],TabellHittillsIÅr[[#This Row],[Huvudbokskod]],SammanfattningMånadsutgifter[Summa])","v":{"v":0,"d":"0.00 kr"}},{"v":100000,"d":"100,000.00 kr"},{"$f":"IF(TabellHittillsIÅr[[#This Row],[Budget]]=\"\",\"\",TabellHittillsIÅr[[#This Row],[Budget]]-TabellHittillsIÅr[[#This Row],[Verklig]])","v":{"v":100000,"d":"100,000.00 kr"}},{"$f":"IFERROR(TabellHittillsIÅr[[#This Row],[Återstående SEK]]/TabellHittillsIÅr[[#This Row],[Budget]],\"\")","v":{"v":1,"d":"100.00%"}}]
[null,4000,"Serverkostnader",{"$f":"SUMIF(SammanfattningMånadsutgifter[Huvudbokskod],TabellHittillsIÅr[[#This Row],[Huvudbokskod]],SammanfattningMånadsutgifter[Summa])","v":{"v":0,"d":"0.00 kr"}},{"v":100000,"d":"100,000.00 kr"},{"$f":"IF(TabellHittillsIÅr[[#This Row],[Budget]]=\"\",\"\",TabellHittillsIÅr[[#This Row],[Budget]]-TabellHittillsIÅr[[#This Row],[Verklig]])","v":{"v":100000,"d":"100,000.00 kr"}},{"$f":"IFERROR(TabellHittillsIÅr[[#This Row],[Återstående SEK]]/TabellHittillsIÅr[[#This Row],[Budget]],\"\")","v":{"v":1,"d":"100.00%"}}]
[null,5000,"Material",{"$f":"SUMIF(SammanfattningMånadsutgifter[Huvudbokskod],TabellHittillsIÅr[[#This Row],[Huvudbokskod]],SammanfattningMånadsutgifter[Summa])","v":{"v":0,"d":"0.00 kr"}},{"v":50000,"d":"50,000.00 kr"},{"$f":"IF(TabellHittillsIÅr[[#This Row],[Budget]]=\"\",\"\",TabellHittillsIÅr[[#This Row],[Budget]]-TabellHittillsIÅr[[#This Row],[Verklig]])","v":{"v":50000,"d":"50,000.00 kr"}},{"$f":"IFERROR(TabellHittillsIÅr[[#This Row],[Återstående SEK]]/TabellHittillsIÅr[[#This Row],[Budget]],\"\")","v":{"v":1,"d":"100.00%"}}]
[null,6000,"Klientutgifter",{"$f":"SUMIF(SammanfattningMånadsutgifter[Huvudbokskod],TabellHittillsIÅr[[#This Row],[Huvudbokskod]],SammanfattningMånadsutgifter[Summa])","v":{"v":0,"d":"0.00 kr"}},{"v":25000,"d":"25,000.00 kr"},{"$f":"IF(TabellHittillsIÅr[[#This Row],[Budget]]=\"\",\"\",TabellHittillsIÅr[[#This Row],[Budget]]-TabellHittillsIÅr[[#This Row],[Verklig]])","v":{"v":25000,"d":"25,000.00 kr"}},{"$f":"IFERROR(TabellHittillsIÅr[[#This Row],[Återstående SEK]]/TabellHittillsIÅr[[#This Row],[Budget]],\"\")","v":{"v":1,"d":"100.00%"}}]
[null,7000,"Datorer",{"$f":"SUMIF(SammanfattningMånadsutgifter[Huvudbokskod],TabellHittillsIÅr[[#This Row],[Huvudbokskod]],SammanfattningMånadsutgifter[Summa])","v":{"v":0,"d":"0.00 kr"}},{"v":75000,"d":"75,000.00 kr"},{"$f":"IF(TabellHittillsIÅr[[#This Row],[Budget]]=\"\",\"\",TabellHittillsIÅr[[#This Row],[Budget]]-TabellHittillsIÅr[[#This Row],[Verklig]])","v":{"v":75000,"d":"75,000.00 kr"}},{"$f":"IFERROR(TabellHittillsIÅr[[#This Row],[Återstående SEK]]/TabellHittillsIÅr[[#This Row],[Budget]],\"\")","v":{"v":1,"d":"100.00%"}}]
[null,8000,"Sjukvårdsplan",{"$f":"SUMIF(SammanfattningMånadsutgifter[Huvudbokskod],TabellHittillsIÅr[[#This Row],[Huvudbokskod]],SammanfattningMånadsutgifter[Summa])","v":{"v":0,"d":"0.00 kr"}},{"v":65000,"d":"65,000.00 kr"},{"$f":"IF(TabellHittillsIÅr[[#This Row],[Budget]]=\"\",\"\",TabellHittillsIÅr[[#This Row],[Budget]]-TabellHittillsIÅr[[#This Row],[Verklig]])","v":{"v":65000,"d":"65,000.00 kr"}},{"$f":"IFERROR(TabellHittillsIÅr[[#This Row],[Återstående SEK]]/TabellHittillsIÅr[[#This Row],[Budget]],\"\")","v":{"v":1,"d":"100.00%"}}]
[null,9000,"Byggkostnader",{"$f":"SUMIF(SammanfattningMånadsutgifter[Huvudbokskod],TabellHittillsIÅr[[#This Row],[Huvudbokskod]],SammanfattningMånadsutgifter[Summa])","v":{"v":0,"d":"0.00 kr"}},{"v":125000,"d":"125,000.00 kr"},{"$f":"IF(TabellHittillsIÅr[[#This Row],[Budget]]=\"\",\"\",TabellHittillsIÅr[[#This Row],[Budget]]-TabellHittillsIÅr[[#This Row],[Verklig]])","v":{"v":125000,"d":"125,000.00 kr"}},{"$f":"IFERROR(TabellHittillsIÅr[[#This Row],[Återstående SEK]]/TabellHittillsIÅr[[#This Row],[Budget]],\"\")","v":{"v":1,"d":"100.00%"}}]
[null,10000,"Marknadsföring",{"$f":"SUMIF(SammanfattningMånadsutgifter[Huvudbokskod],TabellHittillsIÅr[[#This Row],[Huvudbokskod]],SammanfattningMånadsutgifter[Summa])","v":{"v":0,"d":"0.00 kr"}},{"v":100000,"d":"100,000.00 kr"},{"$f":"IF(TabellHittillsIÅr[[#This Row],[Budget]]=\"\",\"\",TabellHittillsIÅr[[#This Row],[Budget]]-TabellHittillsIÅr[[#This Row],[Verklig]])","v":{"v":100000,"d":"100,000.00 kr"}},{"$f":"IFERROR(TabellHittillsIÅr[[#This Row],[Återstående SEK]]/TabellHittillsIÅr[[#This Row],[Budget]],\"\")","v":{"v":1,"d":"100.00%"}}]
[null,11000,"Välgörenhet",{"$f":"SUMIF(SammanfattningMånadsutgifter[Huvudbokskod],TabellHittillsIÅr[[#This Row],[Huvudbokskod]],SammanfattningMånadsutgifter[Summa])","v":{"v":0,"d":"0.00 kr"}},{"v":250000,"d":"250,000.00 kr"},{"$f":"IF(TabellHittillsIÅr[[#This Row],[Budget]]=\"\",\"\",TabellHittillsIÅr[[#This Row],[Budget]]-TabellHittillsIÅr[[#This Row],[Verklig]])","v":{"v":250000,"d":"250,000.00 kr"}},{"$f":"IFERROR(TabellHittillsIÅr[[#This Row],[Återstående SEK]]/TabellHittillsIÅr[[#This Row],[Budget]],\"\")","v":{"v":1,"d":"100.00%"}}]
[null,12000,"Sponsring",{"$f":"SUMIF(SammanfattningMånadsutgifter[Huvudbokskod],TabellHittillsIÅr[[#This Row],[Huvudbokskod]],SammanfattningMånadsutgifter[Summa])","v":{"v":0,"d":"0.00 kr"}},{"v":50000,"d":"50,000.00 kr"},{"$f":"IF(TabellHittillsIÅr[[#This Row],[Budget]]=\"\",\"\",TabellHittillsIÅr[[#This Row],[Budget]]-TabellHittillsIÅr[[#This Row],[Verklig]])","v":{"v":50000,"d":"50,000.00 kr"}},{"$f":"IFERROR(TabellHittillsIÅr[[#This Row],[Återstående SEK]]/TabellHittillsIÅr[[#This Row],[Budget]],\"\")","v":{"v":1,"d":"100.00%"}}]
[null,"Summa",null,{"$f":"SUBTOTAL(109,TabellHittillsIÅr[Verklig])","v":{"v":0,"d":"0.00 kr"}},{"$f":"SUBTOTAL(109,TabellHittillsIÅr[Budget])","v":{"v":1140000,"d":"1,140,000.00 kr"}},{"$f":"SUBTOTAL(109,TabellHittillsIÅr[Återstående SEK])","v":{"v":1140000,"d":"1,140,000.00 kr"}},{"$f":"TabellHittillsIÅr[[#Totals],[Återstående SEK]]/TabellHittillsIÅr[[#Totals],[Budget]]","v":{"v":1,"d":"100.00%"}}]

{"sheet":"SAMMANFATTNING MÅNADSUTGIFTER","index":1,"n_rows":18,"n_cols":17,"rows_kept":18,"merged":[[1,1,1,16]]}
[null,"SAMMANFATTNING BUDGET HITTILLS I ÅR","SPECIFICERADE UTGIFTER"]
[null,"SAMMANFATTNING MÅNADSUTGIFTER"]
[null,"Utsnitt för att filtrera data efter Kontorubriker finns i den här cellen.",null,{"$f":"DATEVALUE(\"1-JAN\"&_ÅR)","v":"2019-01-01"},{"$f":"DATEVALUE(\"1-FEB\"&_ÅR)","v":"2019-02-01"},{"$f":"DATEVALUE(\"1-MAR\"&_ÅR)","v":"2019-03-01"},{"$f":"DATEVALUE(\"1-APR\"&_ÅR)","v":"2019-04-01"},{"$f":"DATEVALUE(\"1-MAJ\"&_ÅR)","v":"2019-05-01"},{"$f":"DATEVALUE(\"1-JUN\"&_ÅR)","v":"2019-06-01"},{"$f":"DATEVALUE(\"1-JUL\"&_ÅR)","v":"2019-07-01"},{"$f":"DATEVALUE(\"1-AUG\"&_ÅR)","v":"2019-08-01"},{"$f":"DATEVALUE(\"1-SEP\"&_ÅR)","v":"2019-09-01"},{"$f":"DATEVALUE(\"1-OKT\"&_ÅR)","v":"2019-10-01"},{"$f":"DATEVALUE(\"1-NOV\"&_ÅR)","v":"2019-11-01"},{"$f":"DATEVALUE(\"1-DEC\"&_ÅR)","v":"2019-12-01"}]
[{"$nulls":3},{"$f":"EOMONTH(D3,0)","v":"2019-01-31"},{"$f":"EOMONTH(E3,0)","v":"2019-02-28"},{"$f":"EOMONTH(F3,0)","v":"2019-03-31"},{"$f":"EOMONTH(G3,0)","v":"2019-04-30"},{"$f":"EOMONTH(H3,0)","v":"2019-05-31"},{"$f":"EOMONTH(I3,0)","v":"2019-06-30"},"2019-07-31","2019-08-31","2019-09-30","2019-10-31","2019-11-30","2019-12-31"]
[null,"Huvudbokskod","Kontorubrik","Januari","Februari","Mars","April","Maj","Juni","Juli","Augusti","September","Oktober","November","December","Summa"," "]
[null,1000,"Annonsering",{"$f":"SUMIFS(SpecificeradeUtgifter[Checkbelopp],SpecificeradeUtgifter[Huvudbokskod],SammanfattningMånadsutgifter[[#This Row],[Huvudbokskod]],SpecificeradeUtgifter[Fakturadatum],\">=\"&D$3,SpecificeradeUtgifter[Fakturadatum],\"<=\"&D$4)+SUMIFS(Övrigt[Checkbelopp],Övrigt[Huvudbokskod],SammanfattningMånadsutgifter[[#This Row],[Huvudbokskod]],Övrigt[Datum checkbegäran initierades],\">=\"&DATEVALUE(_ÅR&SammanfattningMånadsutgifter[[#Headers],[Januari]]&\" 1, \"),Övrigt[Datum checkbegäran initierades],\"<=\"&D$4)","v":{"v":0,"d":"0.00 kr"}},{"$f":"SUMIFS(SpecificeradeUtgifter[Checkbelopp],SpecificeradeUtgifter[Huvudbokskod],SammanfattningMånadsutgifter[[#This Row],[Huvudbokskod]],SpecificeradeUtgifter[Fakturadatum],\">=\"&E$3,SpecificeradeUtgifter[Fakturadatum],\"<=\"&E$4)+SUMIFS(Övrigt[Checkbelopp],Övrigt[Huvudbokskod],SammanfattningMånadsutgifter[[#This Row],[Huvudbokskod]],Övrigt[Datum checkbegäran initierades],\">=\"&DATEVALUE(_ÅR&SammanfattningMånadsutgifter[[#Headers],[Februari]]&\" 1, \"),Övrigt[Datum checkbegäran initierades],\"<=\"&E$4)","v":{"v":0,"d":"0.00 kr"}},{"$f":"SUMIFS(SpecificeradeUtgifter[Checkbelopp],SpecificeradeUtgifter[Huvudbokskod],SammanfattningMånadsutgifter[[#This Row],[Huvudbokskod]],SpecificeradeUtgifter[Fakturadatum],\">=\"&F$3,SpecificeradeUtgifter[Fakturadatum],\"<=\"&F$4)+SUMIFS(Övrigt[Checkbelopp],Övrigt[Huvudbokskod],SammanfattningMånadsutgifter[[#This Row],[Huvudbokskod]],Övrigt[Datum checkbegäran initierades],\">=\"&DATEVALUE(_ÅR&SammanfattningMånadsutgifter[[#Headers],[Mars]]&\" 1, \"),Övrigt[Datum checkbegäran initierades],\"<=\"&F$4)","v":{"v":0,"d":"0.00 kr"}},{"$f":"SUMIFS(SpecificeradeUtgifter[Checkbelopp],SpecificeradeUtgifter[Huvudbokskod],SammanfattningMånadsutgifter[[#This Row],[Huvudbokskod]],SpecificeradeUtgifter[Fakturadatum],\">=\"&G$3,SpecificeradeUtgifter[Fakturadatum],\"<=\"&G$4)+SUMIFS(Övrigt[Checkbelopp],Övrigt[Huvudbokskod],SammanfattningMånadsutgifter[[#This Row],[Huvudbokskod]],Övrigt[Datum checkbegäran initierades],\">=\"&DATEVALUE(_ÅR&SammanfattningMånadsutgifter[[#Headers],[April]]&\" 1, \"),Övrigt[Datum checkbegäran initierades],\"<=\"&G$4)","v":{"v":0,"d":"0.00 kr"}},{"$f":"SUMIFS(SpecificeradeUtgifter[Checkbelopp],SpecificeradeUtgifter[Huvudbokskod],SammanfattningMånadsutgifter[[#This Row],[Huvudbokskod]],SpecificeradeUtgifter[Fakturadatum],\">=\"&H$3,SpecificeradeUtgifter[Fakturadatum],\"<=\"&H$4)+SUMIFS(Övrigt[Checkbelopp],Övrigt[Huvudbokskod],SammanfattningMånadsutgifter[[#This Row],[Huvudbokskod]],Övrigt[Datum checkbegäran initierades],\">=\"&DATEVALUE(_ÅR&SammanfattningMånadsutgifter[[#Headers],[Maj]]&\" 1, \"),Övrigt[Datum checkbegäran initierades],\"<=\"&H$4)","v":{"v":0,"d":"0.00 kr"}},{"$f":"SUMIFS(SpecificeradeUtgifter[Checkbelopp],SpecificeradeUtgifter[Huvudbokskod],SammanfattningMånadsutgifter[[#This Row],[Huvudbokskod]],SpecificeradeUtgifter[Fakturadatum],\">=\"&I$3,SpecificeradeUtgifter[Fakturadatum],\"<=\"&I$4)+SUMIFS(Övrigt[Checkbelopp],Övrigt[Huvudbokskod],SammanfattningMånadsutgifter[[#This Row],[Huvudbokskod]],Övrigt[Datum checkbegäran initierades],\">=\"&DATEVALUE(_ÅR&SammanfattningMånadsutgifter[[#Headers],[Juni]]&\" 1, \"),Övrigt[Datum checkbegäran initierades],\"<=\"&I$4)","v":{"v":0,"d":"0.00 kr"}},{"$f":"SUMIFS(SpecificeradeUtgifter[Checkbelopp],SpecificeradeUtgifter[Huvudbokskod],SammanfattningMånadsutgifter[[#This Row],[Huvudbokskod]],SpecificeradeUtgifter[Fakturadatum],\">=\"&J$3,SpecificeradeUtgifter[Fakturadatum],\"<=\"&J$4)+SUMIFS(Övrigt[Checkbelopp],Övrigt[Huvudbokskod],SammanfattningMånadsutgifter[[#This Row],[Huvudbokskod]],Övrigt[Datum checkbegäran initierades],\">=\"&DATEVALUE(_ÅR&SammanfattningMånadsutgifter[[#Headers],[Juli]]&\" 1, \"),Övrigt[Datum checkbegäran initierades],\"<=\"&J$4)","v":{"v":0,"d":"0.00 kr"}},{"$f":"SUMIFS(SpecificeradeUtgifter[Checkbelopp],SpecificeradeUtgifter[Huvudbokskod],SammanfattningMånadsutgifter[[#This Row],[Huvudbokskod]],SpecificeradeUtgifter[Fakturadatum],\">=\"&K$3,SpecificeradeUtgifter[Fakturadatum],\"<=\"&K$4)+SUMIFS(Övrigt[Checkbelopp],Övrigt[Huvudbokskod],SammanfattningMånadsutgifter[[#This Row],[Huvudbokskod]],Övrigt[Datum checkbegäran initierades],\">=\"&DATEVALUE(_ÅR&SammanfattningMånadsutgifter[[#Headers],[Augusti]]&\" 1, \"),Övrigt[Datum checkbegäran initierades],\"<=\"&K$4)","v":{"v":0,"d":"0.00 kr"}},{"$f":"SUMIFS(SpecificeradeUtgifter[Checkbelopp],SpecificeradeUtgifter[Huvudbokskod],SammanfattningMånadsutgifter[[#This Row],[Huvudbokskod]],SpecificeradeUtgifter[Fakturadatum],\">=\"&L$3,SpecificeradeUtgifter[Fakturadatum],\"<=\"&L$4)+SUMIFS(Övrigt[Checkbelopp],Övrigt[Huvudbokskod],SammanfattningMånadsutgifter[[#This Row],[Huvudbokskod]],Övrigt[Datum checkbegäran initierades],\">=\"&DATEVALUE(_ÅR&SammanfattningMånadsutgifter[[#Headers],[September]]&\" 1, \"),Övrigt[Datum checkbegäran initierades],\"<=\"&L$4)","v":{"v":0,"d":"0.00 kr"}},{"$f":"SUMIFS(SpecificeradeUtgifter[Checkbelopp],SpecificeradeUtgifter[Huvudbokskod],SammanfattningMånadsutgifter[[#This Row],[Huvudbokskod]],SpecificeradeUtgifter[Fakturadatum],\">=\"&M$3,SpecificeradeUtgifter[Fakturadatum],\"<=\"&M$4)+SUMIFS(Övrigt[Checkbelopp],Övrigt[Huvudbokskod],SammanfattningMånadsutgifter[[#This Row],[Huvudbokskod]],Övrigt[Datum checkbegäran initierades],\">=\"&DATEVALUE(_ÅR&SammanfattningMånadsutgifter[[#Headers],[Oktober]]&\" 1, \"),Övrigt[Datum checkbegäran initierades],\"<=\"&M$4)","v":{"v":0,"d":"0.00 kr"}},{"$f":"SUMIFS(SpecificeradeUtgifter[Checkbelopp],SpecificeradeUtgifter[Huvudbokskod],SammanfattningMånadsutgifter[[#This Row],[Huvudbokskod]],SpecificeradeUtgifter[Fakturadatum],\">=\"&N$3,SpecificeradeUtgifter[Fakturadatum],\"<=\"&N$4)+SUMIFS(Övrigt[Checkbelopp],Övrigt[Huvudbokskod],SammanfattningMånadsutgifter[[#This Row],[Huvudbokskod]],Övrigt[Datum checkbegäran initierades],\">=\"&DATEVALUE(_ÅR&SammanfattningMånadsutgifter[[#Headers],[November]]&\" 1, \"),Övrigt[Datum checkbegäran initierades],\"<=\"&N$4)","v":{"v":0,"d":"0.00 kr"}},{"$f":"SUMIFS(SpecificeradeUtgifter[Checkbelopp],SpecificeradeUtgifter[Huvudbokskod],SammanfattningMånadsutgifter[[#This Row],[Huvudbokskod]],SpecificeradeUtgifter[Fakturadatum],\">=\"&O$3,SpecificeradeUtgifter[Fakturadatum],\"<=\"&O$4)+SUMIFS(Övrigt[Checkbelopp],Övrigt[Huvudbokskod],SammanfattningMånadsutgifter[[#This Row],[Huvudbokskod]],Övrigt[Datum checkbegäran initierades],\">=\"&DATEVALUE(_ÅR&SammanfattningMånadsutgifter[[#Headers],[December]]&\" 1, \"),Övrigt[Datum checkbegäran initierades],\"<=\"&O$4)","v":{"v":0,"d":"0.00 kr"}},{"$f":"SUM(SammanfattningMånadsutgifter[[#This Row],[Januari]:[December]])","v":{"v":0,"d":"0.00 kr"}}]
[null,2000,"Kontorsutrustning",{"$f":"SUMIFS(SpecificeradeUtgifter[Checkbelopp],SpecificeradeUtgifter[Huvudbokskod],SammanfattningMånadsutgifter[[#This Row],[Huvudbokskod]],SpecificeradeUtgifter[Fakturadatum],\">=\"&D$3,SpecificeradeUtgifter[Fakturadatum],\"<=\"&D$4)+SUMIFS(Övrigt[Checkbelopp],Övrigt[Huvudbokskod],SammanfattningMånadsutgifter[[#This Row],[Huvudbokskod]],Övrigt[Datum checkbegäran initierades],\">=\"&DATEVALUE(_ÅR&SammanfattningMånadsutgifter[[#Headers],[Januari]]&\" 1, \"),Övrigt[Datum checkbegäran initierades],\"<=\"&D$4)","v":{"v":0,"d":"0.00 kr"}},{"$f":"SUMIFS(SpecificeradeUtgifter[Checkbelopp],SpecificeradeUtgifter[Huvudbokskod],SammanfattningMånadsutgifter[[#This Row],[Huvudbokskod]],SpecificeradeUtgifter[Fakturadatum],\">=\"&E$3,SpecificeradeUtgifter[Fakturadatum],\"<=\"&E$4)+SUMIFS(Övrigt[Checkbelopp],Övrigt[Huvudbokskod],SammanfattningMånadsutgifter[[#This Row],[Huvudbokskod]],Övrigt[Datum checkbegäran initierades],\">=\"&DATEVALUE(_ÅR&SammanfattningMånadsutgifter[[#Headers],[Februari]]&\" 1, \"),Övrigt[Datum checkbegäran initierades],\"<=\"&E$4)","v":{"v":0,"d":"0.00 kr"}},{"$f":"SUMIFS(SpecificeradeUtgifter[Checkbelopp],SpecificeradeUtgifter[Huvudbokskod],SammanfattningMånadsutgifter[[#This Row],[Huvudbokskod]],SpecificeradeUtgifter[Fakturadatum],\">=\"&F$3,SpecificeradeUtgifter[Fakturadatum],\"<=\"&F$4)+SUMIFS(Övrigt[Checkbelopp],Övrigt[Huvudbokskod],SammanfattningMånadsutgifter[[#This Row],[Huvudbokskod]],Övrigt[Datum checkbegäran initierades],\">=\"&DATEVALUE(_ÅR&SammanfattningMånadsutgifter[[#Headers],[Mars]]&\" 1, \"),Övrigt[Datum checkbegäran initierades],\"<=\"&F$4)","v":{"v":0,"d":"0.00 kr"}},{"$f":"SUMIFS(SpecificeradeUtgifter[Checkbelopp],SpecificeradeUtgifter[Huvudbokskod],SammanfattningMånadsutgifter[[#This Row],[Huvudbokskod]],SpecificeradeUtgifter[Fakturadatum],\">=\"&G$3,SpecificeradeUtgifter[Fakturadatum],\"<=\"&G$4)+SUMIFS(Övrigt[Checkbelopp],Övrigt[Huvudbokskod],SammanfattningMånadsutgifter[[#This Row],[Huvudbokskod]],Övrigt[Datum checkbegäran initierades],\">=\"&DATEVALUE(_ÅR&SammanfattningMånadsutgifter[[#Headers],[April]]&\" 1, \"),Övrigt[Datum checkbegäran initierades],\"<=\"&G$4)","v":{"v":0,"d":"0.00 kr"}},{"$f":"SUMIFS(SpecificeradeUtgifter[Checkbelopp],SpecificeradeUtgifter[Huvudbokskod],SammanfattningMånadsutgifter[[#This Row],[Huvudbokskod]],SpecificeradeUtgifter[Fakturadatum],\">=\"&H$3,SpecificeradeUtgifter[Fakturadatum],\"<=\"&H$4)+SUMIFS(Övrigt[Checkbelopp],Övrigt[Huvudbokskod],SammanfattningMånadsutgifter[[#This Row],[Huvudbokskod]],Övrigt[Datum checkbegäran initierades],\">=\"&DATEVALUE(_ÅR&SammanfattningMånadsutgifter[[#Headers],[Maj]]&\" 1, \"),Övrigt[Datum checkbegäran initierades],\"<=\"&H$4)","v":{"v":0,"d":"0.00 kr"}},{"$f":"SUMIFS(SpecificeradeUtgifter[Checkbelopp],SpecificeradeUtgifter[Huvudbokskod],SammanfattningMånadsutgifter[[#This Row],[Huvudbokskod]],SpecificeradeUtgifter[Fakturadatum],\">=\"&I$3,SpecificeradeUtgifter[Fakturadatum],\"<=\"&I$4)+SUMIFS(Övrigt[Checkbelopp],Övrigt[Huvudbokskod],SammanfattningMånadsutgifter[[#This Row],[Huvudbokskod]],Övrigt[Datum checkbegäran initierades],\">=\"&DATEVALUE(_ÅR&SammanfattningMånadsutgifter[[#Headers],[Juni]]&\" 1, \"),Övrigt[Datum checkbegäran initierades],\"<=\"&I$4)","v":{"v":0,"d":"0.00 kr"}},{"$f":"SUMIFS(SpecificeradeUtgifter[Checkbelopp],SpecificeradeUtgifter[Huvudbokskod],SammanfattningMånadsutgifter[[#This Row],[Huvudbokskod]],SpecificeradeUtgifter[Fakturadatum],\">=\"&J$3,SpecificeradeUtgifter[Fakturadatum],\"<=\"&J$4)+SUMIFS(Övrigt[Checkbelopp],Övrigt[Huvudbokskod],SammanfattningMånadsutgifter[[#This Row],[Huvudbokskod]],Övrigt[Datum checkbegäran initierades],\">=\"&DATEVALUE(_ÅR&SammanfattningMånadsutgifter[[#Headers],[Juli]]&\" 1, \"),Övrigt[Datum checkbegäran initierades],\"<=\"&J$4)","v":{"v":0,"d":"0.00 kr"}},{"$f":"SUMIFS(SpecificeradeUtgifter[Checkbelopp],SpecificeradeUtgifter[Huvudbokskod],SammanfattningMånadsutgifter[[#This Row],[Huvudbokskod]],SpecificeradeUtgifter[Fakturadatum],\">=\"&K$3,SpecificeradeUtgifter[Fakturadatum],\"<=\"&K$4)+SUMIFS(Övrigt[Checkbelopp],Övrigt[Huvudbokskod],SammanfattningMånadsutgifter[[#This Row],[Huvudbokskod]],Övrigt[Datum checkbegäran initierades],\">=\"&DATEVALUE(_ÅR&SammanfattningMånadsutgifter[[#Headers],[Augusti]]&\" 1, \"),Övrigt[Datum checkbegäran initierades],\"<=\"&K$4)","v":{"v":0,"d":"0.00 kr"}},{"$f":"SUMIFS(SpecificeradeUtgifter[Checkbelopp],SpecificeradeUtgifter[Huvudbokskod],SammanfattningMånadsutgifter[[#This Row],[Huvudbokskod]],SpecificeradeUtgifter[Fakturadatum],\">=\"&L$3,SpecificeradeUtgifter[Fakturadatum],\"<=\"&L$4)+SUMIFS(Övrigt[Checkbelopp],Övrigt[Huvudbokskod],SammanfattningMånadsutgifter[[#This Row],[Huvudbokskod]],Övrigt[Datum checkbegäran initierades],\">=\"&DATEVALUE(_ÅR&SammanfattningMånadsutgifter[[#Headers],[September]]&\" 1, \"),Övrigt[Datum checkbegäran initierades],\"<=\"&L$4)","v":{"v":0,"d":"0.00 kr"}},{"$f":"SUMIFS(SpecificeradeUtgifter[Checkbelopp],SpecificeradeUtgifter[Huvudbokskod],SammanfattningMånadsutgifter[[#This Row],[Huvudbokskod]],SpecificeradeUtgifter[Fakturadatum],\">=\"&M$3,SpecificeradeUtgifter[Fakturadatum],\"<=\"&M$4)+SUMIFS(Övrigt[Checkbelopp],Övrigt[Huvudbokskod],SammanfattningMånadsutgifter[[#This Row],[Huvudbokskod]],Övrigt[Datum checkbegäran initierades],\">=\"&DATEVALUE(_ÅR&SammanfattningMånadsutgifter[[#Headers],[Oktober]]&\" 1, \"),Övrigt[Datum checkbegäran initierades],\"<=\"&M$4)","v":{"v":0,"d":"0.00 kr"}},{"$f":"SUMIFS(SpecificeradeUtgifter[Checkbelopp],SpecificeradeUtgifter[Huvudbokskod],SammanfattningMånadsutgifter[[#This Row],[Huvudbokskod]],SpecificeradeUtgifter[Fakturadatum],\">=\"&N$3,SpecificeradeUtgifter[Fakturadatum],\"<=\"&N$4)+SUMIFS(Övrigt[Checkbelopp],Övrigt[Huvudbokskod],SammanfattningMånadsutgifter[[#This Row],[Huvudbokskod]],Övrigt[Datum checkbegäran initierades],\">=\"&DATEVALUE(_ÅR&SammanfattningMånadsutgifter[[#Headers],[November]]&\" 1, \"),Övrigt[Datum checkbegäran initierades],\"<=\"&N$4)","v":{"v":0,"d":"0.00 kr"}},{"$f":"SUMIFS(SpecificeradeUtgifter[Checkbelopp],SpecificeradeUtgifter[Huvudbokskod],SammanfattningMånadsutgifter[[#This Row],[Huvudbokskod]],SpecificeradeUtgifter[Fakturadatum],\">=\"&O$3,SpecificeradeUtgifter[Fakturadatum],\"<=\"&O$4)+SUMIFS(Övrigt[Checkbelopp],Övrigt[Huvudbokskod],SammanfattningMånadsutgifter[[#This Row],[Huvudbokskod]],Övrigt[Datum checkbegäran initierades],\">=\"&DATEVALUE(_ÅR&SammanfattningMånadsutgifter[[#Headers],[December]]&\" 1, \"),Övrigt[Datum checkbegäran initierades],\"<=\"&O$4)","v":{"v":0,"d":"0.00 kr"}},{"$f":"SUM(SammanfattningMånadsutgifter[[#This Row],[Januari]:[December]])","v":{"v":0,"d":"0.00 kr"}}]
[null,3000,"Skrivare",{"$f":"SUMIFS(SpecificeradeUtgifter[Checkbelopp],SpecificeradeUtgifter[Huvudbokskod],SammanfattningMånadsutgifter[[#This Row],[Huvudbokskod]],SpecificeradeUtgifter[Fakturadatum],\">=\"&D$3,SpecificeradeUtgifter[Fakturadatum],\"<=\"&D$4)+SUMIFS(Övrigt[Checkbelopp],Övrigt[Huvudbokskod],SammanfattningMånadsutgifter[[#This Row],[Huvudbokskod]],Övrigt[Datum checkbegäran initierades],\">=\"&DATEVALUE(_ÅR&SammanfattningMånadsutgifter[[#Headers],[Januari]]&\" 1, \"),Övrigt[Datum checkbegäran initierades],\"<=\"&D$4)","v":{"v":0,"d":"0.00 kr"}},{"$f":"SUMIFS(SpecificeradeUtgifter[Checkbelopp],SpecificeradeUtgifter[Huvudbokskod],SammanfattningMånadsutgifter[[#This Row],[Huvudbokskod]],SpecificeradeUtgifter[Fakturadatum],\">=\"&E$3,SpecificeradeUtgifter[Fakturadatum],\"<=\"&E$4)+SUMIFS(Övrigt[Checkbelopp],Övrigt[Huvudbokskod],SammanfattningMånadsutgifter[[#This Row],[Huvudbokskod]],Övrigt[Datum checkbegäran initierades],\">=\"&DATEVALUE(_ÅR&SammanfattningMånadsutgifter[[#Headers],[Februari]]&\" 1, \"),Övrigt[Datum checkbegäran initierades],\"<=\"&E$4)","v":{"v":0,"d":"0.00 kr"}},{"$f":"SUMIFS(SpecificeradeUtgifter[Checkbelopp],SpecificeradeUtgifter[Huvudbokskod],SammanfattningMånadsutgifter[[#This Row],[Huvudbokskod]],SpecificeradeUtgifter[Fakturadatum],\">=\"&F$3,SpecificeradeUtgifter[Fakturadatum],\"<=\"&F$4)+SUMIFS(Övrigt[Checkbelopp],Övrigt[Huvudbokskod],SammanfattningMånadsutgifter[[#This Row],[Huvudbokskod]],Övrigt[Datum checkbegäran initierades],\">=\"&DATEVALUE(_ÅR&SammanfattningMånadsutgifter[[#Headers],[Mars]]&\" 1, \"),Övrigt[Datum checkbegäran initierades],\"<=\"&F$4)","v":{"v":0,"d":"0.00 kr"}},{"$f":"SUMIFS(SpecificeradeUtgifter[Checkbelopp],SpecificeradeUtgifter[Huvudbokskod],SammanfattningMånadsutgifter[[#This Row],[Huvudbokskod]],SpecificeradeUtgifter[Fakturadatum],\">=\"&G$3,SpecificeradeUtgifter[Fakturadatum],\"<=\"&G$4)+SUMIFS(Övrigt[Checkbelopp],Övrigt[Huvudbokskod],SammanfattningMånadsutgifter[[#This Row],[Huvudbokskod]],Övrigt[Datum checkbegäran initierades],\">=\"&DATEVALUE(_ÅR&SammanfattningMånadsutgifter[[#Headers],[April]]&\" 1, \"),Övrigt[Datum checkbegäran initierades],\"<=\"&G$4)","v":{"v":0,"d":"0.00 kr"}},{"$f":"SUMIFS(SpecificeradeUtgifter[Checkbelopp],SpecificeradeUtgifter[Huvudbokskod],SammanfattningMånadsutgifter[[#This Row],[Huvudbokskod]],SpecificeradeUtgifter[Fakturadatum],\">=\"&H$3,SpecificeradeUtgifter[Fakturadatum],\"<=\"&H$4)+SUMIFS(Övrigt[Checkbelopp],Övrigt[Huvudbokskod],SammanfattningMånadsutgifter[[#This Row],[Huvudbokskod]],Övrigt[Datum checkbegäran initierades],\">=\"&DATEVALUE(_ÅR&SammanfattningMånadsutgifter[[#Headers],[Maj]]&\" 1, \"),Övrigt[Datum checkbegäran initierades],\"<=\"&H$4)","v":{"v":0,"d":"0.00 kr"}},{"$f":"SUMIFS(SpecificeradeUtgifter[Checkbelopp],SpecificeradeUtgifter[Huvudbokskod],SammanfattningMånadsutgifter[[#This Row],[Huvudbokskod]],SpecificeradeUtgifter[Fakturadatum],\">=\"&I$3,SpecificeradeUtgifter[Fakturadatum],\"<=\"&I$4)+SUMIFS(Övrigt[Checkbelopp],Övrigt[Huvudbokskod],SammanfattningMånadsutgifter[[#This Row],[Huvudbokskod]],Övrigt[Datum checkbegäran initierades],\">=\"&DATEVALUE(_ÅR&SammanfattningMånadsutgifter[[#Headers],[Juni]]&\" 1, \"),Övrigt[Datum checkbegäran initierades],\"<=\"&I$4)","v":{"v":0,"d":"0.00 kr"}},{"$f":"SUMIFS(SpecificeradeUtgifter[Checkbelopp],SpecificeradeUtgifter[Huvudbokskod],SammanfattningMånadsutgifter[[#This Row],[Huvudbokskod]],SpecificeradeUtgifter[Fakturadatum],\">=\"&J$3,SpecificeradeUtgifter[Fakturadatum],\"<=\"&J$4)+SUMIFS(Övrigt[Checkbelopp],Övrigt[Huvudbokskod],SammanfattningMånadsutgifter[[#This Row],[Huvudbokskod]],Övrigt[Datum checkbegäran initierades],\">=\"&DATEVALUE(_ÅR&SammanfattningMånadsutgifter[[#Headers],[Juli]]&\" 1, \"),Övrigt[Datum checkbegäran initierades],\"<=\"&J$4)","v":{"v":0,"d":"0.00 kr"}},{"$f":"SUMIFS(SpecificeradeUtgifter[Checkbelopp],SpecificeradeUtgifter[Huvudbokskod],SammanfattningMånadsutgifter[[#This Row],[Huvudbokskod]],SpecificeradeUtgifter[Fakturadatum],\">=\"&K$3,SpecificeradeUtgifter[Fakturadatum],\"<=\"&K$4)+SUMIFS(Övrigt[Checkbelopp],Övrigt[Huvudbokskod],SammanfattningMånadsutgifter[[#This Row],[Huvudbokskod]],Övrigt[Datum checkbegäran initierades],\">=\"&DATEVALUE(_ÅR&SammanfattningMånadsutgifter[[#Headers],[Augusti]]&\" 1, \"),Övrigt[Datum checkbegäran initierades],\"<=\"&K$4)","v":{"v":0,"d":"0.00 kr"}},{"$f":"SUMIFS(SpecificeradeUtgifter[Checkbelopp],SpecificeradeUtgifter[Huvudbokskod],SammanfattningMånadsutgifter[[#This Row],[Huvudbokskod]],SpecificeradeUtgifter[Fakturadatum],\">=\"&L$3,SpecificeradeUtgifter[Fakturadatum],\"<=\"&L$4)+SUMIFS(Övrigt[Checkbelopp],Övrigt[Huvudbokskod],SammanfattningMånadsutgifter[[#This Row],[Huvudbokskod]],Övrigt[Datum checkbegäran initierades],\">=\"&DATEVALUE(_ÅR&SammanfattningMånadsutgifter[[#Headers],[September]]&\" 1, \"),Övrigt[Datum checkbegäran initierades],\"<=\"&L$4)","v":{"v":0,"d":"0.00 kr"}},{"$f":"SUMIFS(SpecificeradeUtgifter[Checkbelopp],SpecificeradeUtgifter[Huvudbokskod],SammanfattningMånadsutgifter[[#This Row],[Huvudbokskod]],SpecificeradeUtgifter[Fakturadatum],\">=\"&M$3,SpecificeradeUtgifter[Fakturadatum],\"<=\"&M$4)+SUMIFS(Övrigt[Checkbelopp],Övrigt[Huvudbokskod],SammanfattningMånadsutgifter[[#This Row],[Huvudbokskod]],Övrigt[Datum checkbegäran initierades],\">=\"&DATEVALUE(_ÅR&SammanfattningMånadsutgifter[[#Headers],[Oktober]]&\" 1, \"),Övrigt[Datum checkbegäran initierades],\"<=\"&M$4)","v":{"v":0,"d":"0.00 kr"}},{"$f":"SUMIFS(SpecificeradeUtgifter[Checkbelopp],SpecificeradeUtgifter[Huvudbokskod],SammanfattningMånadsutgifter[[#This Row],[Huvudbokskod]],SpecificeradeUtgifter[Fakturadatum],\">=\"&N$3,SpecificeradeUtgifter[Fakturadatum],\"<=\"&N$4)+SUMIFS(Övrigt[Checkbelopp],Övrigt[Huvudbokskod],SammanfattningMånadsutgifter[[#This Row],[Huvudbokskod]],Övrigt[Datum checkbegäran initierades],\">=\"&DATEVALUE(_ÅR&SammanfattningMånadsutgifter[[#Headers],[November]]&\" 1, \"),Övrigt[Datum checkbegäran initierades],\"<=\"&N$4)","v":{"v":0,"d":"0.00 kr"}},{"$f":"SUMIFS(SpecificeradeUtgifter[Checkbelopp],SpecificeradeUtgifter[Huvudbokskod],SammanfattningMånadsutgifter[[#This Row],[Huvudbokskod]],SpecificeradeUtgifter[Fakturadatum],\">=\"&O$3,SpecificeradeUtgifter[Fakturadatum],\"<=\"&O$4)+SUMIFS(Övrigt[Checkbelopp],Övrigt[Huvudbokskod],SammanfattningMånadsutgifter[[#This Row],[Huvudbokskod]],Övrigt[Datum checkbegäran initierades],\">=\"&DATEVALUE(_ÅR&SammanfattningMånadsutgifter[[#Headers],[December]]&\" 1, \"),Övrigt[Datum checkbegäran initierades],\"<=\"&O$4)","v":{"v":0,"d":"0.00 kr"}},{"$f":"SUM(SammanfattningMånadsutgifter[[#This Row],[Januari]:[December]])","v":{"v":0,"d":"0.00 kr"}}]
[null,4000,"Serverkostnader",{"$f":"SUMIFS(SpecificeradeUtgifter[Checkbelopp],SpecificeradeUtgifter[Huvudbokskod],SammanfattningMånadsutgifter[[#This Row],[Huvudbokskod]],SpecificeradeUtgifter[Fakturadatum],\">=\"&D$3,SpecificeradeUtgifter[Fakturadatum],\"<=\"&D$4)+SUMIFS(Övrigt[Checkbelopp],Övrigt[Huvudbokskod],SammanfattningMånadsutgifter[[#This Row],[Huvudbokskod]],Övrigt[Datum checkbegäran initierades],\">=\"&DATEVALUE(_ÅR&SammanfattningMånadsutgifter[[#Headers],[Januari]]&\" 1, \"),Övrigt[Datum checkbegäran initierades],\"<=\"&D$4)","v":{"v":0,"d":"0.00 kr"}},{"$f":"SUMIFS(SpecificeradeUtgifter[Checkbelopp],SpecificeradeUtgifter[Huvudbokskod],SammanfattningMånadsutgifter[[#This Row],[Huvudbokskod]],SpecificeradeUtgifter[Fakturadatum],\">=\"&E$3,SpecificeradeUtgifter[Fakturadatum],\"<=\"&E$4)+SUMIFS(Övrigt[Checkbelopp],Övrigt[Huvudbokskod],SammanfattningMånadsutgifter[[#This Row],[Huvudbokskod]],Övrigt[Datum checkbegäran initierades],\">=\"&DATEVALUE(_ÅR&SammanfattningMånadsutgifter[[#Headers],[Februari]]&\" 1, \"),Övrigt[Datum checkbegäran initierades],\"<=\"&E$4)","v":{"v":0,"d":"0.00 kr"}},{"$f":"SUMIFS(SpecificeradeUtgifter[Checkbelopp],SpecificeradeUtgifter[Huvudbokskod],SammanfattningMånadsutgifter[[#This Row],[Huvudbokskod]],SpecificeradeUtgifter[Fakturadatum],\">=\"&F$3,SpecificeradeUtgifter[Fakturadatum],\"<=\"&F$4)+SUMIFS(Övrigt[Checkbelopp],Övrigt[Huvudbokskod],SammanfattningMånadsutgifter[[#This Row],[Huvudbokskod]],Övrigt[Datum checkbegäran initierades],\">=\"&DATEVALUE(_ÅR&SammanfattningMånadsutgifter[[#Headers],[Mars]]&\" 1, \"),Övrigt[Datum checkbegäran initierades],\"<=\"&F$4)","v":{"v":0,"d":"0.00 kr"}},{"$f":"SUMIFS(SpecificeradeUtgifter[Checkbelopp],SpecificeradeUtgifter[Huvudbokskod],SammanfattningMånadsutgifter[[#This Row],[Huvudbokskod]],SpecificeradeUtgifter[Fakturadatum],\">=\"&G$3,SpecificeradeUtgifter[Fakturadatum],\"<=\"&G$4)+SUMIFS(Övrigt[Checkbelopp],Övrigt[Huvudbokskod],SammanfattningMånadsutgifter[[#This Row],[Huvudbokskod]],Övrigt[Datum checkbegäran initierades],\">=\"&DATEVALUE(_ÅR&SammanfattningMånadsutgifter[[#Headers],[April]]&\" 1, \"),Övrigt[Datum checkbegäran initierades],\"<=\"&G$4)","v":{"v":0,"d":"0.00 kr"}},{"$f":"SUMIFS(SpecificeradeUtgifter[Checkbelopp],SpecificeradeUtgifter[Huvudbokskod],SammanfattningMånadsutgifter[[#This Row],[Huvudbokskod]],SpecificeradeUtgifter[Fakturadatum],\">=\"&H$3,SpecificeradeUtgifter[Fakturadatum],\"<=\"&H$4)+SUMIFS(Övrigt[Checkbelopp],Övrigt[Huvudbokskod],SammanfattningMånadsutgifter[[#This Row],[Huvudbokskod]],Övrigt[Datum checkbegäran initierades],\">=\"&DATEVALUE(_ÅR&SammanfattningMånadsutgifter[[#Headers],[Maj]]&\" 1, \"),Övrigt[Datum checkbegäran initierades],\"<=\"&H$4)","v":{"v":0,"d":"0.00 kr"}},{"$f":"SUMIFS(SpecificeradeUtgifter[Checkbelopp],SpecificeradeUtgifter[Huvudbokskod],SammanfattningMånadsutgifter[[#This Row],[Huvudbokskod]],SpecificeradeUtgifter[Fakturadatum],\">=\"&I$3,SpecificeradeUtgifter[Fakturadatum],\"<=\"&I$4)+SUMIFS(Övrigt[Checkbelopp],Övrigt[Huvudbokskod],SammanfattningMånadsutgifter[[#This Row],[Huvudbokskod]],Övrigt[Datum checkbegäran initierades],\">=\"&DATEVALUE(_ÅR&SammanfattningMånadsutgifter[[#Headers],[Juni]]&\" 1, \"),Övrigt[Datum checkbegäran initierades],\"<=\"&I$4)","v":{"v":0,"d":"0.00 kr"}},{"$f":"SUMIFS(SpecificeradeUtgifter[Checkbelopp],SpecificeradeUtgifter[Huvudbokskod],SammanfattningMånadsutgifter[[#This Row],[Huvudbokskod]],SpecificeradeUtgifter[Fakturadatum],\">=\"&J$3,SpecificeradeUtgifter[Fakturadatum],\"<=\"&J$4)+SUMIFS(Övrigt[Checkbelopp],Övrigt[Huvudbokskod],SammanfattningMånadsutgifter[[#This Row],[Huvudbokskod]],Övrigt[Datum checkbegäran initierades],\">=\"&DATEVALUE(_ÅR&SammanfattningMånadsutgifter[[#Headers],[Juli]]&\" 1, \"),Övrigt[Datum checkbegäran initierades],\"<=\"&J$4)","v":{"v":0,"d":"0.00 kr"}},{"$f":"SUMIFS(SpecificeradeUtgifter[Checkbelopp],SpecificeradeUtgifter[Huvudbokskod],SammanfattningMånadsutgifter[[#This Row],[Huvudbokskod]],SpecificeradeUtgifter[Fakturadatum],\">=\"&K$3,SpecificeradeUtgifter[Fakturadatum],\"<=\"&K$4)+SUMIFS(Övrigt[Checkbelopp],Övrigt[Huvudbokskod],SammanfattningMånadsutgifter[[#This Row],[Huvudbokskod]],Övrigt[Datum checkbegäran initierades],\">=\"&DATEVALUE(_ÅR&SammanfattningMånadsutgifter[[#Headers],[Augusti]]&\" 1, \"),Övrigt[Datum checkbegäran initierades],\"<=\"&K$4)","v":{"v":0,"d":"0.00 kr"}},{"$f":"SUMIFS(SpecificeradeUtgifter[Checkbelopp],SpecificeradeUtgifter[Huvudbokskod],SammanfattningMånadsutgifter[[#This Row],[Huvudbokskod]],SpecificeradeUtgifter[Fakturadatum],\">=\"&L$3,SpecificeradeUtgifter[Fakturadatum],\"<=\"&L$4)+SUMIFS(Övrigt[Checkbelopp],Övrigt[Huvudbokskod],SammanfattningMånadsutgifter[[#This Row],[Huvudbokskod]],Övrigt[Datum checkbegäran initierades],\">=\"&DATEVALUE(_ÅR&SammanfattningMånadsutgifter[[#Headers],[September]]&\" 1, \"),Övrigt[Datum checkbegäran initierades],\"<=\"&L$4)","v":{"v":0,"d":"0.00 kr"}},{"$f":"SUMIFS(SpecificeradeUtgifter[Checkbelopp],SpecificeradeUtgifter[Huvudbokskod],SammanfattningMånadsutgifter[[#This Row],[Huvudbokskod]],SpecificeradeUtgifter[Fakturadatum],\">=\"&M$3,SpecificeradeUtgifter[Fakturadatum],\"<=\"&M$4)+SUMIFS(Övrigt[Checkbelopp],Övrigt[Huvudbokskod],SammanfattningMånadsutgifter[[#This Row],[Huvudbokskod]],Övrigt[Datum checkbegäran initierades],\">=\"&DATEVALUE(_ÅR&SammanfattningMånadsutgifter[[#Headers],[Oktober]]&\" 1, \"),Övrigt[Datum checkbegäran initierades],\"<=\"&M$4)","v":{"v":0,"d":"0.00 kr"}},{"$f":"SUMIFS(SpecificeradeUtgifter[Checkbelopp],SpecificeradeUtgifter[Huvudbokskod],SammanfattningMånadsutgifter[[#This Row],[Huvudbokskod]],SpecificeradeUtgifter[Fakturadatum],\">=\"&N$3,SpecificeradeUtgifter[Fakturadatum],\"<=\"&N$4)+SUMIFS(Övrigt[Checkbelopp],Övrigt[Huvudbokskod],SammanfattningMånadsutgifter[[#This Row],[Huvudbokskod]],Övrigt[Datum checkbegäran initierades],\">=\"&DATEVALUE(_ÅR&SammanfattningMånadsutgifter[[#Headers],[November]]&\" 1, \"),Övrigt[Datum checkbegäran initierades],\"<=\"&N$4)","v":{"v":0,"d":"0.00 kr"}},{"$f":"SUMIFS(SpecificeradeUtgifter[Checkbelopp],SpecificeradeUtgifter[Huvudbokskod],SammanfattningMånadsutgifter[[#This Row],[Huvudbokskod]],SpecificeradeUtgifter[Fakturadatum],\">=\"&O$3,SpecificeradeUtgifter[Fakturadatum],\"<=\"&O$4)+SUMIFS(Övrigt[Checkbelopp],Övrigt[Huvudbokskod],SammanfattningMånadsutgifter[[#This Row],[Huvudbokskod]],Övrigt[Datum checkbegäran initierades],\">=\"&DATEVALUE(_ÅR&SammanfattningMånadsutgifter[[#Headers],[December]]&\" 1, \"),Övrigt[Datum checkbegäran initierades],\"<=\"&O$4)","v":{"v":0,"d":"0.00 kr"}},{"$f":"SUM(SammanfattningMånadsutgifter[[#This Row],[Januari]:[December]])","v":{"v":0,"d":"0.00 kr"}}]
[null,5000,"Material",{"$f":"SUMIFS(SpecificeradeUtgifter[Checkbelopp],SpecificeradeUtgifter[Huvudbokskod],SammanfattningMånadsutgifter[[#This Row],[Huvudbokskod]],SpecificeradeUtgifter[Fakturadatum],\">=\"&D$3,SpecificeradeUtgifter[Fakturadatum],\"<=\"&D$4)+SUMIFS(Övrigt[Checkbelopp],Övrigt[Huvudbokskod],SammanfattningMånadsutgifter[[#This Row],[Huvudbokskod]],Övrigt[Datum checkbegäran initierades],\">=\"&DATEVALUE(_ÅR&SammanfattningMånadsutgifter[[#Headers],[Januari]]&\" 1, \"),Övrigt[Datum checkbegäran initierades],\"<=\"&D$4)","v":{"v":0,"d":"0.00 kr"}},{"$f":"SUMIFS(SpecificeradeUtgifter[Checkbelopp],SpecificeradeUtgifter[Huvudbokskod],SammanfattningMånadsutgifter[[#This Row],[Huvudbokskod]],SpecificeradeUtgifter[Fakturadatum],\">=\"&E$3,SpecificeradeUtgifter[Fakturadatum],\"<=\"&E$4)+SUMIFS(Övrigt[Checkbelopp],Övrigt[Huvudbokskod],SammanfattningMånadsutgifter[[#This Row],[Huvudbokskod]],Övrigt[Datum checkbegäran initierades],\">=\"&DATEVALUE(_ÅR&SammanfattningMånadsutgifter[[#Headers],[Februari]]&\" 1, \"),Övrigt[Datum checkbegäran initierades],\"<=\"&E$4)","v":{"v":0,"d":"0.00 kr"}},{"$f":"SUMIFS(SpecificeradeUtgifter[Checkbelopp],SpecificeradeUtgifter[Huvudbokskod],SammanfattningMånadsutgifter[[#This Row],[Huvudbokskod]],SpecificeradeUtgifter[Fakturadatum],\">=\"&F$3,SpecificeradeUtgifter[Fakturadatum],\"<=\"&F$4)+SUMIFS(Övrigt[Checkbelopp],Övrigt[Huvudbokskod],SammanfattningMånadsutgifter[[#This Row],[Huvudbokskod]],Övrigt[Datum checkbegäran initierades],\">=\"&DATEVALUE(_ÅR&SammanfattningMånadsutgifter[[#Headers],[Mars]]&\" 1, \"),Övrigt[Datum checkbegäran initierades],\"<=\"&F$4)","v":{"v":0,"d":"0.00 kr"}},{"$f":"SUMIFS(SpecificeradeUtgifter[Checkbelopp],SpecificeradeUtgifter[Huvudbokskod],SammanfattningMånadsutgifter[[#This Row],[Huvudbokskod]],SpecificeradeUtgifter[Fakturadatum],\">=\"&G$3,SpecificeradeUtgifter[Fakturadatum],\"<=\"&G$4)+SUMIFS(Övrigt[Checkbelopp],Övrigt[Huvudbokskod],SammanfattningMånadsutgifter[[#This Row],[Huvudbokskod]],Övrigt[Datum checkbegäran initierades],\">=\"&DATEVALUE(_ÅR&SammanfattningMånadsutgifter[[#Headers],[April]]&\" 1, \"),Övrigt[Datum checkbegäran initierades],\"<=\"&G$4)","v":{"v":0,"d":"0.00 kr"}},{"$f":"SUMIFS(SpecificeradeUtgifter[Checkbelopp],SpecificeradeUtgifter[Huvudbokskod],SammanfattningMånadsutgifter[[#This Row],[Huvudbokskod]],SpecificeradeUtgifter[Fakturadatum],\">=\"&H$3,SpecificeradeUtgifter[Fakturadatum],\"<=\"&H$4)+SUMIFS(Övrigt[Checkbelopp],Övrigt[Huvudbokskod],SammanfattningMånadsutgifter[[#This Row],[Huvudbokskod]],Övrigt[Datum checkbegäran initierades],\">=\"&DATEVALUE(_ÅR&SammanfattningMånadsutgifter[[#Headers],[Maj]]&\" 1, \"),Övrigt[Datum checkbegäran initierades],\"<=\"&H$4)","v":{"v":0,"d":"0.00 kr"}},{"$f":"SUMIFS(SpecificeradeUtgifter[Checkbelopp],SpecificeradeUtgifter[Huvudbokskod],SammanfattningMånadsutgifter[[#This Row],[Huvudbokskod]],SpecificeradeUtgifter[Fakturadatum],\">=\"&I$3,SpecificeradeUtgifter[Fakturadatum],\"<=\"&I$4)+SUMIFS(Övrigt[Checkbelopp],Övrigt[Huvudbokskod],SammanfattningMånadsutgifter[[#This Row],[Huvudbokskod]],Övrigt[Datum checkbegäran initierades],\">=\"&DATEVALUE(_ÅR&SammanfattningMånadsutgifter[[#Headers],[Juni]]&\" 1, \"),Övrigt[Datum checkbegäran initierades],\"<=\"&I$4)","v":{"v":0,"d":"0.00 kr"}},{"$f":"SUMIFS(SpecificeradeUtgifter[Checkbelopp],SpecificeradeUtgifter[Huvudbokskod],SammanfattningMånadsutgifter[[#This Row],[Huvudbokskod]],SpecificeradeUtgifter[Fakturadatum],\">=\"&J$3,SpecificeradeUtgifter[Fakturadatum],\"<=\"&J$4)+SUMIFS(Övrigt[Checkbelopp],Övrigt[Huvudbokskod],SammanfattningMånadsutgifter[[#This Row],[Huvudbokskod]],Övrigt[Datum checkbegäran initierades],\">=\"&DATEVALUE(_ÅR&SammanfattningMånadsutgifter[[#Headers],[Juli]]&\" 1, \"),Övrigt[Datum checkbegäran initierades],\"<=\"&J$4)","v":{"v":0,"d":"0.00 kr"}},{"$f":"SUMIFS(SpecificeradeUtgifter[Checkbelopp],SpecificeradeUtgifter[Huvudbokskod],SammanfattningMånadsutgifter[[#This Row],[Huvudbokskod]],SpecificeradeUtgifter[Fakturadatum],\">=\"&K$3,SpecificeradeUtgifter[Fakturadatum],\"<=\"&K$4)+SUMIFS(Övrigt[Checkbelopp],Övrigt[Huvudbokskod],SammanfattningMånadsutgifter[[#This Row],[Huvudbokskod]],Övrigt[Datum checkbegäran initierades],\">=\"&DATEVALUE(_ÅR&SammanfattningMånadsutgifter[[#Headers],[Augusti]]&\" 1, \"),Övrigt[Datum checkbegäran initierades],\"<=\"&K$4)","v":{"v":0,"d":"0.00 kr"}},{"$f":"SUMIFS(SpecificeradeUtgifter[Checkbelopp],SpecificeradeUtgifter[Huvudbokskod],SammanfattningMånadsutgifter[[#This Row],[Huvudbokskod]],SpecificeradeUtgifter[Fakturadatum],\">=\"&L$3,SpecificeradeUtgifter[Fakturadatum],\"<=\"&L$4)+SUMIFS(Övrigt[Checkbelopp],Övrigt[Huvudbokskod],SammanfattningMånadsutgifter[[#This Row],[Huvudbokskod]],Övrigt[Datum checkbegäran initierades],\">=\"&DATEVALUE(_ÅR&SammanfattningMånadsutgifter[[#Headers],[September]]&\" 1, \"),Övrigt[Datum checkbegäran initierades],\"<=\"&L$4)","v":{"v":0,"d":"0.00 kr"}},{"$f":"SUMIFS(SpecificeradeUtgifter[Checkbelopp],SpecificeradeUtgifter[Huvudbokskod],SammanfattningMånadsutgifter[[#This Row],[Huvudbokskod]],SpecificeradeUtgifter[Fakturadatum],\">=\"&M$3,SpecificeradeUtgifter[Fakturadatum],\"<=\"&M$4)+SUMIFS(Övrigt[Checkbelopp],Övrigt[Huvudbokskod],SammanfattningMånadsutgifter[[#This Row],[Huvudbokskod]],Övrigt[Datum checkbegäran initierades],\">=\"&DATEVALUE(_ÅR&SammanfattningMånadsutgifter[[#Headers],[Oktober]]&\" 1, \"),Övrigt[Datum checkbegäran initierades],\"<=\"&M$4)","v":{"v":0,"d":"0.00 kr"}},{"$f":"SUMIFS(SpecificeradeUtgifter[Checkbelopp],SpecificeradeUtgifter[Huvudbokskod],SammanfattningMånadsutgifter[[#This Row],[Huvudbokskod]],SpecificeradeUtgifter[Fakturadatum],\">=\"&N$3,SpecificeradeUtgifter[Fakturadatum],\"<=\"&N$4)+SUMIFS(Övrigt[Checkbelopp],Övrigt[Huvudbokskod],SammanfattningMånadsutgifter[[#This Row],[Huvudbokskod]],Övrigt[Datum checkbegäran initierades],\">=\"&DATEVALUE(_ÅR&SammanfattningMånadsutgifter[[#Headers],[November]]&\" 1, \"),Övrigt[Datum checkbegäran initierades],\"<=\"&N$4)","v":{"v":0,"d":"0.00 kr"}},{"$f":"SUMIFS(SpecificeradeUtgifter[Checkbelopp],SpecificeradeUtgifter[Huvudbokskod],SammanfattningMånadsutgifter[[#This Row],[Huvudbokskod]],SpecificeradeUtgifter[Fakturadatum],\">=\"&O$3,SpecificeradeUtgifter[Fakturadatum],\"<=\"&O$4)+SUMIFS(Övrigt[Checkbelopp],Övrigt[Huvudbokskod],SammanfattningMånadsutgifter[[#This Row],[Huvudbokskod]],Övrigt[Datum checkbegäran initierades],\">=\"&DATEVALUE(_ÅR&SammanfattningMånadsutgifter[[#Headers],[December]]&\" 1, \"),Övrigt[Datum checkbegäran initierades],\"<=\"&O$4)","v":{"v":0,"d":"0.00 kr"}},{"$f":"SUM(SammanfattningMånadsutgifter[[#This Row],[Januari]:[December]])","v":{"v":0,"d":"0.00 kr"}}]
[null,6000,"Klientutgifter",{"$f":"SUMIFS(SpecificeradeUtgifter[Checkbelopp],SpecificeradeUtgifter[Huvudbokskod],SammanfattningMånadsutgifter[[#This Row],[Huvudbokskod]],SpecificeradeUtgifter[Fakturadatum],\">=\"&D$3,SpecificeradeUtgifter[Fakturadatum],\"<=\"&D$4)+SUMIFS(Övrigt[Checkbelopp],Övrigt[Huvudbokskod],SammanfattningMånadsutgifter[[#This Row],[Huvudbokskod]],Övrigt[Datum checkbegäran initierades],\">=\"&DATEVALUE(_ÅR&SammanfattningMånadsutgifter[[#Headers],[Januari]]&\" 1, \"),Övrigt[Datum checkbegäran initierades],\"<=\"&D$4)","v":{"v":0,"d":"0.00 kr"}},{"$f":"SUMIFS(SpecificeradeUtgifter[Checkbelopp],SpecificeradeUtgifter[Huvudbokskod],SammanfattningMånadsutgifter[[#This Row],[Huvudbokskod]],SpecificeradeUtgifter[Fakturadatum],\">=\"&E$3,SpecificeradeUtgifter[Fakturadatum],\"<=\"&E$4)+SUMIFS(Övrigt[Checkbelopp],Övrigt[Huvudbokskod],SammanfattningMånadsutgifter[[#This Row],[Huvudbokskod]],Övrigt[Datum checkbegäran initierades],\">=\"&DATEVALUE(_ÅR&SammanfattningMånadsutgifter[[#Headers],[Februari]]&\" 1, \"),Övrigt[Datum checkbegäran initierades],\"<=\"&E$4)","v":{"v":0,"d":"0.00 kr"}},{"$f":"SUMIFS(SpecificeradeUtgifter[Checkbelopp],SpecificeradeUtgifter[Huvudbokskod],SammanfattningMånadsutgifter[[#This Row],[Huvudbokskod]],SpecificeradeUtgifter[Fakturadatum],\">=\"&F$3,SpecificeradeUtgifter[Fakturadatum],\"<=\"&F$4)+SUMIFS(Övrigt[Checkbelopp],Övrigt[Huvudbokskod],SammanfattningMånadsutgifter[[#This Row],[Huvudbokskod]],Övrigt[Datum checkbegäran initierades],\">=\"&DATEVALUE(_ÅR&SammanfattningMånadsutgifter[[#Headers],[Mars]]&\" 1, \"),Övrigt[Datum checkbegäran initierades],\"<=\"&F$4)","v":{"v":0,"d":"0.00 kr"}},{"$f":"SUMIFS(SpecificeradeUtgifter[Checkbelopp],SpecificeradeUtgifter[Huvudbokskod],SammanfattningMånadsutgifter[[#This Row],[Huvudbokskod]],SpecificeradeUtgifter[Fakturadatum],\">=\"&G$3,SpecificeradeUtgifter[Fakturadatum],\"<=\"&G$4)+SUMIFS(Övrigt[Checkbelopp],Övrigt[Huvudbokskod],SammanfattningMånadsutgifter[[#This Row],[Huvudbokskod]],Övrigt[Datum checkbegäran initierades],\">=\"&DATEVALUE(_ÅR&SammanfattningMånadsutgifter[[#Headers],[April]]&\" 1, \"),Övrigt[Datum checkbegäran initierades],\"<=\"&G$4)","v":{"v":0,"d":"0.00 kr"}},{"$f":"SUMIFS(SpecificeradeUtgifter[Checkbelopp],SpecificeradeUtgifter[Huvudbokskod],SammanfattningMånadsutgifter[[#This Row],[Huvudbokskod]],SpecificeradeUtgifter[Fakturadatum],\">=\"&H$3,SpecificeradeUtgifter[Fakturadatum],\"<=\"&H$4)+SUMIFS(Övrigt[Checkbelopp],Övrigt[Huvudbokskod],SammanfattningMånadsutgifter[[#This Row],[Huvudbokskod]],Övrigt[Datum checkbegäran initierades],\">=\"&DATEVALUE(_ÅR&SammanfattningMånadsutgifter[[#Headers],[Maj]]&\" 1, \"),Övrigt[Datum checkbegäran initierades],\"<=\"&H$4)","v":{"v":0,"d":"0.00 kr"}},{"$f":"SUMIFS(SpecificeradeUtgifter[Checkbelopp],SpecificeradeUtgifter[Huvudbokskod],SammanfattningMånadsutgifter[[#This Row],[Huvudbokskod]],SpecificeradeUtgifter[Fakturadatum],\">=\"&I$3,SpecificeradeUtgifter[Fakturadatum],\"<=\"&I$4)+SUMIFS(Övrigt[Checkbelopp],Övrigt[Huvudbokskod],SammanfattningMånadsutgifter[[#This Row],[Huvudbokskod]],Övrigt[Datum checkbegäran initierades],\">=\"&DATEVALUE(_ÅR&SammanfattningMånadsutgifter[[#Headers],[Juni]]&\" 1, \"),Övrigt[Datum checkbegäran initierades],\"<=\"&I$4)","v":{"v":0,"d":"0.00 kr"}},{"$f":"SUMIFS(SpecificeradeUtgifter[Checkbelopp],SpecificeradeUtgifter[Huvudbokskod],SammanfattningMånadsutgifter[[#This Row],[Huvudbokskod]],SpecificeradeUtgifter[Fakturadatum],\">=\"&J$3,SpecificeradeUtgifter[Fakturadatum],\"<=\"&J$4)+SUMIFS(Övrigt[Checkbelopp],Övrigt[Huvudbokskod],SammanfattningMånadsutgifter[[#This Row],[Huvudbokskod]],Övrigt[Datum checkbegäran initierades],\">=\"&DATEVALUE(_ÅR&SammanfattningMånadsutgifter[[#Headers],[Juli]]&\" 1, \"),Övrigt[Datum checkbegäran initierades],\"<=\"&J$4)","v":{"v":0,"d":"0.00 kr"}},{"$f":"SUMIFS(SpecificeradeUtgifter[Checkbelopp],SpecificeradeUtgifter[Huvudbokskod],SammanfattningMånadsutgifter[[#This Row],[Huvudbokskod]],SpecificeradeUtgifter[Fakturadatum],\">=\"&K$3,SpecificeradeUtgifter[Fakturadatum],\"<=\"&K$4)+SUMIFS(Övrigt[Checkbelopp],Övrigt[Huvudbokskod],SammanfattningMånadsutgifter[[#This Row],[Huvudbokskod]],Övrigt[Datum checkbegäran initierades],\">=\"&DATEVALUE(_ÅR&SammanfattningMånadsutgifter[[#Headers],[Augusti]]&\" 1, \"),Övrigt[Datum checkbegäran initierades],\"<=\"&K$4)","v":{"v":0,"d":"0.00 kr"}},{"$f":"SUMIFS(SpecificeradeUtgifter[Checkbelopp],SpecificeradeUtgifter[Huvudbokskod],SammanfattningMånadsutgifter[[#This Row],[Huvudbokskod]],SpecificeradeUtgifter[Fakturadatum],\">=\"&L$3,SpecificeradeUtgifter[Fakturadatum],\"<=\"&L$4)+SUMIFS(Övrigt[Checkbelopp],Övrigt[Huvudbokskod],SammanfattningMånadsutgifter[[#This Row],[Huvudbokskod]],Övrigt[Datum checkbegäran initierades],\">=\"&DATEVALUE(_ÅR&SammanfattningMånadsutgifter[[#Headers],[September]]&\" 1, \"),Övrigt[Datum checkbegäran initierades],\"<=\"&L$4)","v":{"v":0,"d":"0.00 kr"}},{"$f":"SUMIFS(SpecificeradeUtgifter[Checkbelopp],SpecificeradeUtgifter[Huvudbokskod],SammanfattningMånadsutgifter[[#This Row],[Huvudbokskod]],SpecificeradeUtgifter[Fakturadatum],\">=\"&M$3,SpecificeradeUtgifter[Fakturadatum],\"<=\"&M$4)+SUMIFS(Övrigt[Checkbelopp],Övrigt[Huvudbokskod],SammanfattningMånadsutgifter[[#This Row],[Huvudbokskod]],Övrigt[Datum checkbegäran initierades],\">=\"&DATEVALUE(_ÅR&SammanfattningMånadsutgifter[[#Headers],[Oktober]]&\" 1, \"),Övrigt[Datum checkbegäran initierades],\"<=\"&M$4)","v":{"v":0,"d":"0.00 kr"}},{"$f":"SUMIFS(SpecificeradeUtgifter[Checkbelopp],SpecificeradeUtgifter[Huvudbokskod],SammanfattningMånadsutgifter[[#This Row],[Huvudbokskod]],SpecificeradeUtgifter[Fakturadatum],\">=\"&N$3,SpecificeradeUtgifter[Fakturadatum],\"<=\"&N$4)+SUMIFS(Övrigt[Checkbelopp],Övrigt[Huvudbokskod],SammanfattningMånadsutgifter[[#This Row],[Huvudbokskod]],Övrigt[Datum checkbegäran initierades],\">=\"&DATEVALUE(_ÅR&SammanfattningMånadsutgifter[[#Headers],[November]]&\" 1, \"),Övrigt[Datum checkbegäran initierades],\"<=\"&N$4)","v":{"v":0,"d":"0.00 kr"}},{"$f":"SUMIFS(SpecificeradeUtgifter[Checkbelopp],SpecificeradeUtgifter[Huvudbokskod],SammanfattningMånadsutgifter[[#This Row],[Huvudbokskod]],SpecificeradeUtgifter[Fakturadatum],\">=\"&O$3,SpecificeradeUtgifter[Fakturadatum],\"<=\"&O$4)+SUMIFS(Övrigt[Checkbelopp],Övrigt[Huvudbokskod],SammanfattningMånadsutgifter[[#This Row],[Huvudbokskod]],Övrigt[Datum checkbegäran initierades],\">=\"&DATEVALUE(_ÅR&SammanfattningMånadsutgifter[[#Headers],[December]]&\" 1, \"),Övrigt[Datum checkbegäran initierades],\"<=\"&O$4)","v":{"v":0,"d":"0.00 kr"}},{"$f":"SUM(SammanfattningMånadsutgifter[[#This Row],[Januari]:[December]])","v":{"v":0,"d":"0.00 kr"}}]
[null,7000,"Datorer",{"$f":"SUMIFS(SpecificeradeUtgifter[Checkbelopp],SpecificeradeUtgifter[Huvudbokskod],SammanfattningMånadsutgifter[[#This Row],[Huvudbokskod]],SpecificeradeUtgifter[Fakturadatum],\">=\"&D$3,SpecificeradeUtgifter[Fakturadatum],\"<=\"&D$4)+SUMIFS(Övrigt[Checkbelopp],Övrigt[Huvudbokskod],SammanfattningMånadsutgifter[[#This Row],[Huvudbokskod]],Övrigt[Datum checkbegäran initierades],\">=\"&DATEVALUE(_ÅR&SammanfattningMånadsutgifter[[#Headers],[Januari]]&\" 1, \"),Övrigt[Datum checkbegäran initierades],\"<=\"&D$4)","v":{"v":0,"d":"0.00 kr"}},{"$f":"SUMIFS(SpecificeradeUtgifter[Checkbelopp],SpecificeradeUtgifter[Huvudbokskod],SammanfattningMånadsutgifter[[#This Row],[Huvudbokskod]],SpecificeradeUtgifter[Fakturadatum],\">=\"&E$3,SpecificeradeUtgifter[Fakturadatum],\"<=\"&E$4)+SUMIFS(Övrigt[Checkbelopp],Övrigt[Huvudbokskod],SammanfattningMånadsutgifter[[#This Row],[Huvudbokskod]],Övrigt[Datum checkbegäran initierades],\">=\"&DATEVALUE(_ÅR&SammanfattningMånadsutgifter[[#Headers],[Februari]]&\" 1, \"),Övrigt[Datum checkbegäran initierades],\"<=\"&E$4)","v":{"v":0,"d":"0.00 kr"}},{"$f":"SUMIFS(SpecificeradeUtgifter[Checkbelopp],SpecificeradeUtgifter[Huvudbokskod],SammanfattningMånadsutgifter[[#This Row],[Huvudbokskod]],SpecificeradeUtgifter[Fakturadatum],\">=\"&F$3,SpecificeradeUtgifter[Fakturadatum],\"<=\"&F$4)+SUMIFS(Övrigt[Checkbelopp],Övrigt[Huvudbokskod],SammanfattningMånadsutgifter[[#This Row],[Huvudbokskod]],Övrigt[Datum checkbegäran initierades],\">=\"&DATEVALUE(_ÅR&SammanfattningMånadsutgifter[[#Headers],[Mars]]&\" 1, \"),Övrigt[Datum checkbegäran initierades],\"<=\"&F$4)","v":{"v":0,"d":"0.00 kr"}},{"$f":"SUMIFS(SpecificeradeUtgifter[Checkbelopp],SpecificeradeUtgifter[Huvudbokskod],SammanfattningMånadsutgifter[[#This Row],[Huvudbokskod]],SpecificeradeUtgifter[Fakturadatum],\">=\"&G$3,SpecificeradeUtgifter[Fakturadatum],\"<=\"&G$4)+SUMIFS(Övrigt[Checkbelopp],Övrigt[Huvudbokskod],SammanfattningMånadsutgifter[[#This Row],[Huvudbokskod]],Övrigt[Datum checkbegäran initierades],\">=\"&DATEVALUE(_ÅR&SammanfattningMånadsutgifter[[#Headers],[April]]&\" 1, \"),Övrigt[Datum checkbegäran initierades],\"<=\"&G$4)","v":{"v":0,"d":"0.00 kr"}},{"$f":"SUMIFS(SpecificeradeUtgifter[Checkbelopp],SpecificeradeUtgifter[Huvudbokskod],SammanfattningMånadsutgifter[[#This Row],[Huvudbokskod]],SpecificeradeUtgifter[Fakturadatum],\">=\"&H$3,SpecificeradeUtgifter[Fakturadatum],\"<=\"&H$4)+SUMIFS(Övrigt[Checkbelopp],Övrigt[Huvudbokskod],SammanfattningMånadsutgifter[[#This Row],[Huvudbokskod]],Övrigt[Datum checkbegäran initierades],\">=\"&DATEVALUE(_ÅR&SammanfattningMånadsutgifter[[#Headers],[Maj]]&\" 1, \"),Övrigt[Datum checkbegäran initierades],\"<=\"&H$4)","v":{"v":0,"d":"0.00 kr"}},{"$f":"SUMIFS(SpecificeradeUtgifter[Checkbelopp],SpecificeradeUtgifter[Huvudbokskod],SammanfattningMånadsutgifter[[#This Row],[Huvudbokskod]],SpecificeradeUtgifter[Fakturadatum],\">=\"&I$3,SpecificeradeUtgifter[Fakturadatum],\"<=\"&I$4)+SUMIFS(Övrigt[Checkbelopp],Övrigt[Huvudbokskod],SammanfattningMånadsutgifter[[#This Row],[Huvudbokskod]],Övrigt[Datum checkbegäran initierades],\">=\"&DATEVALUE(_ÅR&SammanfattningMånadsutgifter[[#Headers],[Juni]]&\" 1, \"),Övrigt[Datum checkbegäran initierades],\"<=\"&I$4)","v":{"v":0,"d":"0.00 kr"}},{"$f":"SUMIFS(SpecificeradeUtgifter[Checkbelopp],SpecificeradeUtgifter[Huvudbokskod],SammanfattningMånadsutgifter[[#This Row],[Huvudbokskod]],SpecificeradeUtgifter[Fakturadatum],\">=\"&J$3,SpecificeradeUtgifter[Fakturadatum],\"<=\"&J$4)+SUMIFS(Övrigt[Checkbelopp],Övrigt[Huvudbokskod],SammanfattningMånadsutgifter[[#This Row],[Huvudbokskod]],Övrigt[Datum checkbegäran initierades],\">=\"&DATEVALUE(_ÅR&SammanfattningMånadsutgifter[[#Headers],[Juli]]&\" 1, \"),Övrigt[Datum checkbegäran initierades],\"<=\"&J$4)","v":{"v":0,"d":"0.00 kr"}},{"$f":"SUMIFS(SpecificeradeUtgifter[Checkbelopp],SpecificeradeUtgifter[Huvudbokskod],SammanfattningMånadsutgifter[[#This Row],[Huvudbokskod]],SpecificeradeUtgifter[Fakturadatum],\">=\"&K$3,SpecificeradeUtgifter[Fakturadatum],\"<=\"&K$4)+SUMIFS(Övrigt[Checkbelopp],Övrigt[Huvudbokskod],SammanfattningMånadsutgifter[[#This Row],[Huvudbokskod]],Övrigt[Datum checkbegäran initierades],\">=\"&DATEVALUE(_ÅR&SammanfattningMånadsutgifter[[#Headers],[Augusti]]&\" 1, \"),Övrigt[Datum checkbegäran initierades],\"<=\"&K$4)","v":{"v":0,"d":"0.00 kr"}},{"$f":"SUMIFS(SpecificeradeUtgifter[Checkbelopp],SpecificeradeUtgifter[Huvudbokskod],SammanfattningMånadsutgifter[[#This Row],[Huvudbokskod]],SpecificeradeUtgifter[Fakturadatum],\">=\"&L$3,SpecificeradeUtgifter[Fakturadatum],\"<=\"&L$4)+SUMIFS(Övrigt[Checkbelopp],Övrigt[Huvudbokskod],SammanfattningMånadsutgifter[[#This Row],[Huvudbokskod]],Övrigt[Datum checkbegäran initierades],\">=\"&DATEVALUE(_ÅR&SammanfattningMånadsutgifter[[#Headers],[September]]&\" 1, \"),Övrigt[Datum checkbegäran initierades],\"<=\"&L$4)","v":{"v":0,"d":"0.00 kr"}},{"$f":"SUMIFS(SpecificeradeUtgifter[Checkbelopp],SpecificeradeUtgifter[Huvudbokskod],SammanfattningMånadsutgifter[[#This Row],[Huvudbokskod]],SpecificeradeUtgifter[Fakturadatum],\">=\"&M$3,SpecificeradeUtgifter[Fakturadatum],\"<=\"&M$4)+SUMIFS(Övrigt[Checkbelopp],Övrigt[Huvudbokskod],SammanfattningMånadsutgifter[[#This Row],[Huvudbokskod]],Övrigt[Datum checkbegäran initierades],\">=\"&DATEVALUE(_ÅR&SammanfattningMånadsutgifter[[#Headers],[Oktober]]&\" 1, \"),Övrigt[Datum checkbegäran initierades],\"<=\"&M$4)","v":{"v":0,"d":"0.00 kr"}},{"$f":"SUMIFS(SpecificeradeUtgifter[Checkbelopp],SpecificeradeUtgifter[Huvudbokskod],SammanfattningMånadsutgifter[[#This Row],[Huvudbokskod]],SpecificeradeUtgifter[Fakturadatum],\">=\"&N$3,SpecificeradeUtgifter[Fakturadatum],\"<=\"&N$4)+SUMIFS(Övrigt[Checkbelopp],Övrigt[Huvudbokskod],SammanfattningMånadsutgifter[[#This Row],[Huvudbokskod]],Övrigt[Datum checkbegäran initierades],\">=\"&DATEVALUE(_ÅR&SammanfattningMånadsutgifter[[#Headers],[November]]&\" 1, \"),Övrigt[Datum checkbegäran initierades],\"<=\"&N$4)","v":{"v":0,"d":"0.00 kr"}},{"$f":"SUMIFS(SpecificeradeUtgifter[Checkbelopp],SpecificeradeUtgifter[Huvudbokskod],SammanfattningMånadsutgifter[[#This Row],[Huvudbokskod]],SpecificeradeUtgifter[Fakturadatum],\">=\"&O$3,SpecificeradeUtgifter[Fakturadatum],\"<=\"&O$4)+SUMIFS(Övrigt[Checkbelopp],Övrigt[Huvudbokskod],SammanfattningMånadsutgifter[[#This Row],[Huvudbokskod]],Övrigt[Datum checkbegäran initierades],\">=\"&DATEVALUE(_ÅR&SammanfattningMånadsutgifter[[#Headers],[December]]&\" 1, \"),Övrigt[Datum checkbegäran initierades],\"<=\"&O$4)","v":{"v":0,"d":"0.00 kr"}},{"$f":"SUM(SammanfattningMånadsutgifter[[#This Row],[Januari]:[December]])","v":{"v":0,"d":"0.00 kr"}}]
[null,8000,"Sjukvårdsplan",{"$f":"SUMIFS(SpecificeradeUtgifter[Checkbelopp],SpecificeradeUtgifter[Huvudbokskod],SammanfattningMånadsutgifter[[#This Row],[Huvudbokskod]],SpecificeradeUtgifter[Fakturadatum],\">=\"&D$3,SpecificeradeUtgifter[Fakturadatum],\"<=\"&D$4)+SUMIFS(Övrigt[Checkbelopp],Övrigt[Huvudbokskod],SammanfattningMånadsutgifter[[#This Row],[Huvudbokskod]],Övrigt[Datum checkbegäran initierades],\">=\"&DATEVALUE(_ÅR&SammanfattningMånadsutgifter[[#Headers],[Januari]]&\" 1, \"),Övrigt[Datum checkbegäran initierades],\"<=\"&D$4)","v":{"v":0,"d":"0.00 kr"}},{"$f":"SUMIFS(SpecificeradeUtgifter[Checkbelopp],SpecificeradeUtgifter[Huvudbokskod],SammanfattningMånadsutgifter[[#This Row],[Huvudbokskod]],SpecificeradeUtgifter[Fakturadatum],\">=\"&E$3,SpecificeradeUtgifter[Fakturadatum],\"<=\"&E$4)+SUMIFS(Övrigt[Checkbelopp],Övrigt[Huvudbokskod],SammanfattningMånadsutgifter[[#This Row],[Huvudbokskod]],Övrigt[Datum checkbegäran initierades],\">=\"&DATEVALUE(_ÅR&SammanfattningMånadsutgifter[[#Headers],[Februari]]&\" 1, \"),Övrigt[Datum checkbegäran initierades],\"<=\"&E$4)","v":{"v":0,"d":"0.00 kr"}},{"$f":"SUMIFS(SpecificeradeUtgifter[Checkbelopp],SpecificeradeUtgifter[Huvudbokskod],SammanfattningMånadsutgifter[[#This Row],[Huvudbokskod]],SpecificeradeUtgifter[Fakturadatum],\">=\"&F$3,SpecificeradeUtgifter[Fakturadatum],\"<=\"&F$4)+SUMIFS(Övrigt[Checkbelopp],Övrigt[Huvudbokskod],SammanfattningMånadsutgifter[[#This Row],[Huvudbokskod]],Övrigt[Datum checkbegäran initierades],\">=\"&DATEVALUE(_ÅR&SammanfattningMånadsutgifter[[#Headers],[Mars]]&\" 1, \"),Övrigt[Datum checkbegäran initierades],\"<=\"&F$4)","v":{"v":0,"d":"0.00 kr"}},{"$f":"SUMIFS(SpecificeradeUtgifter[Checkbelopp],SpecificeradeUtgifter[Huvudbokskod],SammanfattningMånadsutgifter[[#This Row],[Huvudbokskod]],SpecificeradeUtgifter[Fakturadatum],\">=\"&G$3,SpecificeradeUtgifter[Fakturadatum],\"<=\"&G$4)+SUMIFS(Övrigt[Checkbelopp],Övrigt[Huvudbokskod],SammanfattningMånadsutgifter[[#This Row],[Huvudbokskod]],Övrigt[Datum checkbegäran initierades],\">=\"&DATEVALUE(_ÅR&SammanfattningMånadsutgifter[[#Headers],[April]]&\" 1, \"),Övrigt[Datum checkbegäran initierades],\"<=\"&G$4)","v":{"v":0,"d":"0.00 kr"}},{"$f":"SUMIFS(SpecificeradeUtgifter[Checkbelopp],SpecificeradeUtgifter[Huvudbokskod],SammanfattningMånadsutgifter[[#This Row],[Huvudbokskod]],SpecificeradeUtgifter[Fakturadatum],\">=\"&H$3,SpecificeradeUtgifter[Fakturadatum],\"<=\"&H$4)+SUMIFS(Övrigt[Checkbelopp],Övrigt[Huvudbokskod],SammanfattningMånadsutgifter[[#This Row],[Huvudbokskod]],Övrigt[Datum checkbegäran initierades],\">=\"&DATEVALUE(_ÅR&SammanfattningMånadsutgifter[[#Headers],[Maj]]&\" 1, \"),Övrigt[Datum checkbegäran initierades],\"<=\"&H$4)","v":{"v":0,"d":"0.00 kr"}},{"$f":"SUMIFS(SpecificeradeUtgifter[Checkbelopp],SpecificeradeUtgifter[Huvudbokskod],SammanfattningMånadsutgifter[[#This Row],[Huvudbokskod]],SpecificeradeUtgifter[Fakturadatum],\">=\"&I$3,SpecificeradeUtgifter[Fakturadatum],\"<=\"&I$4)+SUMIFS(Övrigt[Checkbelopp],Övrigt[Huvudbokskod],SammanfattningMånadsutgifter[[#This Row],[Huvudbokskod]],Övrigt[Datum checkbegäran initierades],\">=\"&DATEVALUE(_ÅR&SammanfattningMånadsutgifter[[#Headers],[Juni]]&\" 1, \"),Övrigt[Datum checkbegäran initierades],\"<=\"&I$4)","v":{"v":0,"d":"0.00 kr"}},{"$f":"SUMIFS(SpecificeradeUtgifter[Checkbelopp],SpecificeradeUtgifter[Huvudbokskod],SammanfattningMånadsutgifter[[#This Row],[Huvudbokskod]],SpecificeradeUtgifter[Fakturadatum],\">=\"&J$3,SpecificeradeUtgifter[Fakturadatum],\"<=\"&J$4)+SUMIFS(Övrigt[Checkbelopp],Övrigt[Huvudbokskod],SammanfattningMånadsutgifter[[#This Row],[Huvudbokskod]],Övrigt[Datum checkbegäran initierades],\">=\"&DATEVALUE(_ÅR&SammanfattningMånadsutgifter[[#Headers],[Juli]]&\" 1, \"),Övrigt[Datum checkbegäran initierades],\"<=\"&J$4)","v":{"v":0,"d":"0.00 kr"}},{"$f":"SUMIFS(SpecificeradeUtgifter[Checkbelopp],SpecificeradeUtgifter[Huvudbokskod],SammanfattningMånadsutgifter[[#This Row],[Huvudbokskod]],SpecificeradeUtgifter[Fakturadatum],\">=\"&K$3,SpecificeradeUtgifter[Fakturadatum],\"<=\"&K$4)+SUMIFS(Övrigt[Checkbelopp],Övrigt[Huvudbokskod],SammanfattningMånadsutgifter[[#This Row],[Huvudbokskod]],Övrigt[Datum checkbegäran initierades],\">=\"&DATEVALUE(_ÅR&SammanfattningMånadsutgifter[[#Headers],[Augusti]]&\" 1, \"),Övrigt[Datum checkbegäran initierades],\"<=\"&K$4)","v":{"v":0,"d":"0.00 kr"}},{"$f":"SUMIFS(SpecificeradeUtgifter[Checkbelopp],SpecificeradeUtgifter[Huvudbokskod],SammanfattningMånadsutgifter[[#This Row],[Huvudbokskod]],SpecificeradeUtgifter[Fakturadatum],\">=\"&L$3,SpecificeradeUtgifter[Fakturadatum],\"<=\"&L$4)+SUMIFS(Övrigt[Checkbelopp],Övrigt[Huvudbokskod],SammanfattningMånadsutgifter[[#This Row],[Huvudbokskod]],Övrigt[Datum checkbegäran initierades],\">=\"&DATEVALUE(_ÅR&SammanfattningMånadsutgifter[[#Headers],[September]]&\" 1, \"),Övrigt[Datum checkbegäran initierades],\"<=\"&L$4)","v":{"v":0,"d":"0.00 kr"}},{"$f":"SUMIFS(SpecificeradeUtgifter[Checkbelopp],SpecificeradeUtgifter[Huvudbokskod],SammanfattningMånadsutgifter[[#This Row],[Huvudbokskod]],SpecificeradeUtgifter[Fakturadatum],\">=\"&M$3,SpecificeradeUtgifter[Fakturadatum],\"<=\"&M$4)+SUMIFS(Övrigt[Checkbelopp],Övrigt[Huvudbokskod],SammanfattningMånadsutgifter[[#This Row],[Huvudbokskod]],Övrigt[Datum checkbegäran initierades],\">=\"&DATEVALUE(_ÅR&SammanfattningMånadsutgifter[[#Headers],[Oktober]]&\" 1, \"),Övrigt[Datum checkbegäran initierades],\"<=\"&M$4)","v":{"v":0,"d":"0.00 kr"}},{"$f":"SUMIFS(SpecificeradeUtgifter[Checkbelopp],SpecificeradeUtgifter[Huvudbokskod],SammanfattningMånadsutgifter[[#This Row],[Huvudbokskod]],SpecificeradeUtgifter[Fakturadatum],\">=\"&N$3,SpecificeradeUtgifter[Fakturadatum],\"<=\"&N$4)+SUMIFS(Övrigt[Checkbelopp],Övrigt[Huvudbokskod],SammanfattningMånadsutgifter[[#This Row],[Huvudbokskod]],Övrigt[Datum checkbegäran initierades],\">=\"&DATEVALUE(_ÅR&SammanfattningMånadsutgifter[[#Headers],[November]]&\" 1, \"),Övrigt[Datum checkbegäran initierades],\"<=\"&N$4)","v":{"v":0,"d":"0.00 kr"}},{"$f":"SUMIFS(SpecificeradeUtgifter[Checkbelopp],SpecificeradeUtgifter[Huvudbokskod],SammanfattningMånadsutgifter[[#This Row],[Huvudbokskod]],SpecificeradeUtgifter[Fakturadatum],\">=\"&O$3,SpecificeradeUtgifter[Fakturadatum],\"<=\"&O$4)+SUMIFS(Övrigt[Checkbelopp],Övrigt[Huvudbokskod],SammanfattningMånadsutgifter[[#This Row],[Huvudbokskod]],Övrigt[Datum checkbegäran initierades],\">=\"&DATEVALUE(_ÅR&SammanfattningMånadsutgifter[[#Headers],[December]]&\" 1, \"),Övrigt[Datum checkbegäran initierades],\"<=\"&O$4)","v":{"v":0,"d":"0.00 kr"}},{"$f":"SUM(SammanfattningMånadsutgifter[[#This Row],[Januari]:[December]])","v":{"v":0,"d":"0.00 kr"}}]
[null,9000,"Byggkostnader",{"$f":"SUMIFS(SpecificeradeUtgifter[Checkbelopp],SpecificeradeUtgifter[Huvudbokskod],SammanfattningMånadsutgifter[[#This Row],[Huvudbokskod]],SpecificeradeUtgifter[Fakturadatum],\">=\"&D$3,SpecificeradeUtgifter[Fakturadatum],\"<=\"&D$4)+SUMIFS(Övrigt[Checkbelopp],Övrigt[Huvudbokskod],SammanfattningMånadsutgifter[[#This Row],[Huvudbokskod]],Övrigt[Datum checkbegäran initierades],\">=\"&DATEVALUE(_ÅR&SammanfattningMånadsutgifter[[#Headers],[Januari]]&\" 1, \"),Övrigt[Datum checkbegäran initierades],\"<=\"&D$4)","v":{"v":0,"d":"0.00 kr"}},{"$f":"SUMIFS(SpecificeradeUtgifter[Checkbelopp],SpecificeradeUtgifter[Huvudbokskod],SammanfattningMånadsutgifter[[#This Row],[Huvudbokskod]],SpecificeradeUtgifter[Fakturadatum],\">=\"&E$3,SpecificeradeUtgifter[Fakturadatum],\"<=\"&E$4)+SUMIFS(Övrigt[Checkbelopp],Övrigt[Huvudbokskod],SammanfattningMånadsutgifter[[#This Row],[Huvudbokskod]],Övrigt[Datum checkbegäran initierades],\">=\"&DATEVALUE(_ÅR&SammanfattningMånadsutgifter[[#Headers],[Februari]]&\" 1, \"),Övrigt[Datum checkbegäran initierades],\"<=\"&E$4)","v":{"v":0,"d":"0.00 kr"}},{"$f":"SUMIFS(SpecificeradeUtgifter[Checkbelopp],SpecificeradeUtgifter[Huvudbokskod],SammanfattningMånadsutgifter[[#This Row],[Huvudbokskod]],SpecificeradeUtgifter[Fakturadatum],\">=\"&F$3,SpecificeradeUtgifter[Fakturadatum],\"<=\"&F$4)+SUMIFS(Övrigt[Checkbelopp],Övrigt[Huvudbokskod],SammanfattningMånadsutgifter[[#This Row],[Huvudbokskod]],Övrigt[Datum checkbegäran initierades],\">=\"&DATEVALUE(_ÅR&SammanfattningMånadsutgifter[[#Headers],[Mars]]&\" 1, \"),Övrigt[Datum checkbegäran initierades],\"<=\"&F$4)","v":{"v":0,"d":"0.00 kr"}},{"$f":"SUMIFS(SpecificeradeUtgifter[Checkbelopp],SpecificeradeUtgifter[Huvudbokskod],SammanfattningMånadsutgifter[[#This Row],[Huvudbokskod]],SpecificeradeUtgifter[Fakturadatum],\">=\"&G$3,SpecificeradeUtgifter[Fakturadatum],\"<=\"&G$4)+SUMIFS(Övrigt[Checkbelopp],Övrigt[Huvudbokskod],SammanfattningMånadsutgifter[[#This Row],[Huvudbokskod]],Övrigt[Datum checkbegäran initierades],\">=\"&DATEVALUE(_ÅR&SammanfattningMånadsutgifter[[#Headers],[April]]&\" 1, \"),Övrigt[Datum checkbegäran initierades],\"<=\"&G$4)","v":{"v":0,"d":"0.00 kr"}},{"$f":"SUMIFS(SpecificeradeUtgifter[Checkbelopp],SpecificeradeUtgifter[Huvudbokskod],SammanfattningMånadsutgifter[[#This Row],[Huvudbokskod]],SpecificeradeUtgifter[Fakturadatum],\">=\"&H$3,SpecificeradeUtgifter[Fakturadatum],\"<=\"&H$4)+SUMIFS(Övrigt[Checkbelopp],Övrigt[Huvudbokskod],SammanfattningMånadsutgifter[[#This Row],[Huvudbokskod]],Övrigt[Datum checkbegäran initierades],\">=\"&DATEVALUE(_ÅR&SammanfattningMånadsutgifter[[#Headers],[Maj]]&\" 1, \"),Övrigt[Datum checkbegäran initierades],\"<=\"&H$4)","v":{"v":0,"d":"0.00 kr"}},{"$f":"SUMIFS(SpecificeradeUtgifter[Checkbelopp],SpecificeradeUtgifter[Huvudbokskod],SammanfattningMånadsutgifter[[#This Row],[Huvudbokskod]],SpecificeradeUtgifter[Fakturadatum],\">=\"&I$3,SpecificeradeUtgifter[Fakturadatum],\"<=\"&I$4)+SUMIFS(Övrigt[Checkbelopp],Övrigt[Huvudbokskod],SammanfattningMånadsutgifter[[#This Row],[Huvudbokskod]],Övrigt[Datum checkbegäran initierades],\">=\"&DATEVALUE(_ÅR&SammanfattningMånadsutgifter[[#Headers],[Juni]]&\" 1, \"),Övrigt[Datum checkbegäran initierades],\"<=\"&I$4)","v":{"v":0,"d":"0.00 kr"}},{"$f":"SUMIFS(SpecificeradeUtgifter[Checkbelopp],SpecificeradeUtgifter[Huvudbokskod],SammanfattningMånadsutgifter[[#This Row],[Huvudbokskod]],SpecificeradeUtgifter[Fakturadatum],\">=\"&J$3,SpecificeradeUtgifter[Fakturadatum],\"<=\"&J$4)+SUMIFS(Övrigt[Checkbelopp],Övrigt[Huvudbokskod],SammanfattningMånadsutgifter[[#This Row],[Huvudbokskod]],Övrigt[Datum checkbegäran initierades],\">=\"&DATEVALUE(_ÅR&SammanfattningMånadsutgifter[[#Headers],[Juli]]&\" 1, \"),Övrigt[Datum checkbegäran initierades],\"<=\"&J$4)","v":{"v":0,"d":"0.00 kr"}},{"$f":"SUMIFS(SpecificeradeUtgifter[Checkbelopp],SpecificeradeUtgifter[Huvudbokskod],SammanfattningMånadsutgifter[[#This Row],[Huvudbokskod]],SpecificeradeUtgifter[Fakturadatum],\">=\"&K$3,SpecificeradeUtgifter[Fakturadatum],\"<=\"&K$4)+SUMIFS(Övrigt[Checkbelopp],Övrigt[Huvudbokskod],SammanfattningMånadsutgifter[[#This Row],[Huvudbokskod]],Övrigt[Datum checkbegäran initierades],\">=\"&DATEVALUE(_ÅR&SammanfattningMånadsutgifter[[#Headers],[Augusti]]&\" 1, \"),Övrigt[Datum checkbegäran initierades],\"<=\"&K$4)","v":{"v":0,"d":"0.00 kr"}},{"$f":"SUMIFS(SpecificeradeUtgifter[Checkbelopp],SpecificeradeUtgifter[Huvudbokskod],SammanfattningMånadsutgifter[[#This Row],[Huvudbokskod]],SpecificeradeUtgifter[Fakturadatum],\">=\"&L$3,SpecificeradeUtgifter[Fakturadatum],\"<=\"&L$4)+SUMIFS(Övrigt[Checkbelopp],Övrigt[Huvudbokskod],SammanfattningMånadsutgifter[[#This Row],[Huvudbokskod]],Övrigt[Datum checkbegäran initierades],\">=\"&DATEVALUE(_ÅR&SammanfattningMånadsutgifter[[#Headers],[September]]&\" 1, \"),Övrigt[Datum checkbegäran initierades],\"<=\"&L$4)","v":{"v":0,"d":"0.00 kr"}},{"$f":"SUMIFS(SpecificeradeUtgifter[Checkbelopp],SpecificeradeUtgifter[Huvudbokskod],SammanfattningMånadsutgifter[[#This Row],[Huvudbokskod]],SpecificeradeUtgifter[Fakturadatum],\">=\"&M$3,SpecificeradeUtgifter[Fakturadatum],\"<=\"&M$4)+SUMIFS(Övrigt[Checkbelopp],Övrigt[Huvudbokskod],SammanfattningMånadsutgifter[[#This Row],[Huvudbokskod]],Övrigt[Datum checkbegäran initierades],\">=\"&DATEVALUE(_ÅR&SammanfattningMånadsutgifter[[#Headers],[Oktober]]&\" 1, \"),Övrigt[Datum checkbegäran initierades],\"<=\"&M$4)","v":{"v":0,"d":"0.00 kr"}},{"$f":"SUMIFS(SpecificeradeUtgifter[Checkbelopp],SpecificeradeUtgifter[Huvudbokskod],SammanfattningMånadsutgifter[[#This Row],[Huvudbokskod]],SpecificeradeUtgifter[Fakturadatum],\">=\"&N$3,SpecificeradeUtgifter[Fakturadatum],\"<=\"&N$4)+SUMIFS(Övrigt[Checkbelopp],Övrigt[Huvudbokskod],SammanfattningMånadsutgifter[[#This Row],[Huvudbokskod]],Övrigt[Datum checkbegäran initierades],\">=\"&DATEVALUE(_ÅR&SammanfattningMånadsutgifter[[#Headers],[November]]&\" 1, \"),Övrigt[Datum checkbegäran initierades],\"<=\"&N$4)","v":{"v":0,"d":"0.00 kr"}},{"$f":"SUMIFS(SpecificeradeUtgifter[Checkbelopp],SpecificeradeUtgifter[Huvudbokskod],SammanfattningMånadsutgifter[[#This Row],[Huvudbokskod]],SpecificeradeUtgifter[Fakturadatum],\">=\"&O$3,SpecificeradeUtgifter[Fakturadatum],\"<=\"&O$4)+SUMIFS(Övrigt[Checkbelopp],Övrigt[Huvudbokskod],SammanfattningMånadsutgifter[[#This Row],[Huvudbokskod]],Övrigt[Datum checkbegäran initierades],\">=\"&DATEVALUE(_ÅR&SammanfattningMånadsutgifter[[#Headers],[December]]&\" 1, \"),Övrigt[Datum checkbegäran initierades],\"<=\"&O$4)","v":{"v":0,"d":"0.00 kr"}},{"$f":"SUM(SammanfattningMånadsutgifter[[#This Row],[Januari]:[December]])","v":{"v":0,"d":"0.00 kr"}}]
[null,10000,"Marknadsföring",{"$f":"SUMIFS(SpecificeradeUtgifter[Checkbelopp],SpecificeradeUtgifter[Huvudbokskod],SammanfattningMånadsutgifter[[#This Row],[Huvudbokskod]],SpecificeradeUtgifter[Fakturadatum],\">=\"&D$3,SpecificeradeUtgifter[Fakturadatum],\"<=\"&D$4)+SUMIFS(Övrigt[Checkbelopp],Övrigt[Huvudbokskod],SammanfattningMånadsutgifter[[#This Row],[Huvudbokskod]],Övrigt[Datum checkbegäran initierades],\">=\"&DATEVALUE(_ÅR&SammanfattningMånadsutgifter[[#Headers],[Januari]]&\" 1, \"),Övrigt[Datum checkbegäran initierades],\"<=\"&D$4)","v":{"v":0,"d":"0.00 kr"}},{"$f":"SUMIFS(SpecificeradeUtgifter[Checkbelopp],SpecificeradeUtgifter[Huvudbokskod],SammanfattningMånadsutgifter[[#This Row],[Huvudbokskod]],SpecificeradeUtgifter[Fakturadatum],\">=\"&E$3,SpecificeradeUtgifter[Fakturadatum],\"<=\"&E$4)+SUMIFS(Övrigt[Checkbelopp],Övrigt[Huvudbokskod],SammanfattningMånadsutgifter[[#This Row],[Huvudbokskod]],Övrigt[Datum checkbegäran initierades],\">=\"&DATEVALUE(_ÅR&SammanfattningMånadsutgifter[[#Headers],[Februari]]&\" 1, \"),Övrigt[Datum checkbegäran initierades],\"<=\"&E$4)","v":{"v":0,"d":"0.00 kr"}},{"$f":"SUMIFS(SpecificeradeUtgifter[Checkbelopp],SpecificeradeUtgifter[Huvudbokskod],SammanfattningMånadsutgifter[[#This Row],[Huvudbokskod]],SpecificeradeUtgifter[Fakturadatum],\">=\"&F$3,SpecificeradeUtgifter[Fakturadatum],\"<=\"&F$4)+SUMIFS(Övrigt[Checkbelopp],Övrigt[Huvudbokskod],SammanfattningMånadsutgifter[[#This Row],[Huvudbokskod]],Övrigt[Datum checkbegäran initierades],\">=\"&DATEVALUE(_ÅR&SammanfattningMånadsutgifter[[#Headers],[Mars]]&\" 1, \"),Övrigt[Datum checkbegäran initierades],\"<=\"&F$4)","v":{"v":0,"d":"0.00 kr"}},{"$f":"SUMIFS(SpecificeradeUtgifter[Checkbelopp],SpecificeradeUtgifter[Huvudbokskod],SammanfattningMånadsutgifter[[#This Row],[Huvudbokskod]],SpecificeradeUtgifter[Fakturadatum],\">=\"&G$3,SpecificeradeUtgifter[Fakturadatum],\"<=\"&G$4)+SUMIFS(Övrigt[Checkbelopp],Övrigt[Huvudbokskod],SammanfattningMånadsutgifter[[#This Row],[Huvudbokskod]],Övrigt[Datum checkbegäran initierades],\">=\"&DATEVALUE(_ÅR&SammanfattningMånadsutgifter[[#Headers],[April]]&\" 1, \"),Övrigt[Datum checkbegäran initierades],\"<=\"&G$4)","v":{"v":0,"d":"0.00 kr"}},{"$f":"SUMIFS(SpecificeradeUtgifter[Checkbelopp],SpecificeradeUtgifter[Huvudbokskod],SammanfattningMånadsutgifter[[#This Row],[Huvudbokskod]],SpecificeradeUtgifter[Fakturadatum],\">=\"&H$3,SpecificeradeUtgifter[Fakturadatum],\"<=\"&H$4)+SUMIFS(Övrigt[Checkbelopp],Övrigt[Huvudbokskod],SammanfattningMånadsutgifter[[#This Row],[Huvudbokskod]],Övrigt[Datum checkbegäran initierades],\">=\"&DATEVALUE(_ÅR&SammanfattningMånadsutgifter[[#Headers],[Maj]]&\" 1, \"),Övrigt[Datum checkbegäran initierades],\"<=\"&H$4)","v":{"v":0,"d":"0.00 kr"}},{"$f":"SUMIFS(SpecificeradeUtgifter[Checkbelopp],SpecificeradeUtgifter[Huvudbokskod],SammanfattningMånadsutgifter[[#This Row],[Huvudbokskod]],SpecificeradeUtgifter[Fakturadatum],\">=\"&I$3,SpecificeradeUtgifter[Fakturadatum],\"<=\"&I$4)+SUMIFS(Övrigt[Checkbelopp],Övrigt[Huvudbokskod],SammanfattningMånadsutgifter[[#This Row],[Huvudbokskod]],Övrigt[Datum checkbegäran initierades],\">=\"&DATEVALUE(_ÅR&SammanfattningMånadsutgifter[[#Headers],[Juni]]&\" 1, \"),Övrigt[Datum checkbegäran initierades],\"<=\"&I$4)","v":{"v":0,"d":"0.00 kr"}},{"$f":"SUMIFS(SpecificeradeUtgifter[Checkbelopp],SpecificeradeUtgifter[Huvudbokskod],SammanfattningMånadsutgifter[[#This Row],[Huvudbokskod]],SpecificeradeUtgifter[Fakturadatum],\">=\"&J$3,SpecificeradeUtgifter[Fakturadatum],\"<=\"&J$4)+SUMIFS(Övrigt[Checkbelopp],Övrigt[Huvudbokskod],SammanfattningMånadsutgifter[[#This Row],[Huvudbokskod]],Övrigt[Datum checkbegäran initierades],\">=\"&DATEVALUE(_ÅR&SammanfattningMånadsutgifter[[#Headers],[Juli]]&\" 1, \"),Övrigt[Datum checkbegäran initierades],\"<=\"&J$4)","v":{"v":0,"d":"0.00 kr"}},{"$f":"SUMIFS(SpecificeradeUtgifter[Checkbelopp],SpecificeradeUtgifter[Huvudbokskod],SammanfattningMånadsutgifter[[#This Row],[Huvudbokskod]],SpecificeradeUtgifter[Fakturadatum],\">=\"&K$3,SpecificeradeUtgifter[Fakturadatum],\"<=\"&K$4)+SUMIFS(Övrigt[Checkbelopp],Övrigt[Huvudbokskod],SammanfattningMånadsutgifter[[#This Row],[Huvudbokskod]],Övrigt[Datum checkbegäran initierades],\">=\"&DATEVALUE(_ÅR&SammanfattningMånadsutgifter[[#Headers],[Augusti]]&\" 1, \"),Övrigt[Datum checkbegäran initierades],\"<=\"&K$4)","v":{"v":0,"d":"0.00 kr"}},{"$f":"SUMIFS(SpecificeradeUtgifter[Checkbelopp],SpecificeradeUtgifter[Huvudbokskod],SammanfattningMånadsutgifter[[#This Row],[Huvudbokskod]],SpecificeradeUtgifter[Fakturadatum],\">=\"&L$3,SpecificeradeUtgifter[Fakturadatum],\"<=\"&L$4)+SUMIFS(Övrigt[Checkbelopp],Övrigt[Huvudbokskod],SammanfattningMånadsutgifter[[#This Row],[Huvudbokskod]],Övrigt[Datum checkbegäran initierades],\">=\"&DATEVALUE(_ÅR&SammanfattningMånadsutgifter[[#Headers],[September]]&\" 1, \"),Övrigt[Datum checkbegäran initierades],\"<=\"&L$4)","v":{"v":0,"d":"0.00 kr"}},{"$f":"SUMIFS(SpecificeradeUtgifter[Checkbelopp],SpecificeradeUtgifter[Huvudbokskod],SammanfattningMånadsutgifter[[#This Row],[Huvudbokskod]],SpecificeradeUtgifter[Fakturadatum],\">=\"&M$3,SpecificeradeUtgifter[Fakturadatum],\"<=\"&M$4)+SUMIFS(Övrigt[Checkbelopp],Övrigt[Huvudbokskod],SammanfattningMånadsutgifter[[#This Row],[Huvudbokskod]],Övrigt[Datum checkbegäran initierades],\">=\"&DATEVALUE(_ÅR&SammanfattningMånadsutgifter[[#Headers],[Oktober]]&\" 1, \"),Övrigt[Datum checkbegäran initierades],\"<=\"&M$4)","v":{"v":0,"d":"0.00 kr"}},{"$f":"SUMIFS(SpecificeradeUtgifter[Checkbelopp],SpecificeradeUtgifter[Huvudbokskod],SammanfattningMånadsutgifter[[#This Row],[Huvudbokskod]],SpecificeradeUtgifter[Fakturadatum],\">=\"&N$3,SpecificeradeUtgifter[Fakturadatum],\"<=\"&N$4)+SUMIFS(Övrigt[Checkbelopp],Övrigt[Huvudbokskod],SammanfattningMånadsutgifter[[#This Row],[Huvudbokskod]],Övrigt[Datum checkbegäran initierades],\">=\"&DATEVALUE(_ÅR&SammanfattningMånadsutgifter[[#Headers],[November]]&\" 1, \"),Övrigt[Datum checkbegäran initierades],\"<=\"&N$4)","v":{"v":0,"d":"0.00 kr"}},{"$f":"SUMIFS(SpecificeradeUtgifter[Checkbelopp],SpecificeradeUtgifter[Huvudbokskod],SammanfattningMånadsutgifter[[#This Row],[Huvudbokskod]],SpecificeradeUtgifter[Fakturadatum],\">=\"&O$3,SpecificeradeUtgifter[Fakturadatum],\"<=\"&O$4)+SUMIFS(Övrigt[Checkbelopp],Övrigt[Huvudbokskod],SammanfattningMånadsutgifter[[#This Row],[Huvudbokskod]],Övrigt[Datum checkbegäran initierades],\">=\"&DATEVALUE(_ÅR&SammanfattningMånadsutgifter[[#Headers],[December]]&\" 1, \"),Övrigt[Datum checkbegäran initierades],\"<=\"&O$4)","v":{"v":0,"d":"0.00 kr"}},{"$f":"SUM(SammanfattningMånadsutgifter[[#This Row],[Januari]:[December]])","v":{"v":0,"d":"0.00 kr"}}]
[null,11000,"Välgörenhet",{"$f":"SUMIFS(SpecificeradeUtgifter[Checkbelopp],SpecificeradeUtgifter[Huvudbokskod],SammanfattningMånadsutgifter[[#This Row],[Huvudbokskod]],SpecificeradeUtgifter[Fakturadatum],\">=\"&D$3,SpecificeradeUtgifter[Fakturadatum],\"<=\"&D$4)+SUMIFS(Övrigt[Checkbelopp],Övrigt[Huvudbokskod],SammanfattningMånadsutgifter[[#This Row],[Huvudbokskod]],Övrigt[Datum checkbegäran initierades],\">=\"&DATEVALUE(_ÅR&SammanfattningMånadsutgifter[[#Headers],[Januari]]&\" 1, \"),Övrigt[Datum checkbegäran initierades],\"<=\"&D$4)","v":{"v":0,"d":"0.00 kr"}},{"$f":"SUMIFS(SpecificeradeUtgifter[Checkbelopp],SpecificeradeUtgifter[Huvudbokskod],SammanfattningMånadsutgifter[[#This Row],[Huvudbokskod]],SpecificeradeUtgifter[Fakturadatum],\">=\"&E$3,SpecificeradeUtgifter[Fakturadatum],\"<=\"&E$4)+SUMIFS(Övrigt[Checkbelopp],Övrigt[Huvudbokskod],SammanfattningMånadsutgifter[[#This Row],[Huvudbokskod]],Övrigt[Datum checkbegäran initierades],\">=\"&DATEVALUE(_ÅR&SammanfattningMånadsutgifter[[#Headers],[Februari]]&\" 1, \"),Övrigt[Datum checkbegäran initierades],\"<=\"&E$4)","v":{"v":0,"d":"0.00 kr"}},{"$f":"SUMIFS(SpecificeradeUtgifter[Checkbelopp],SpecificeradeUtgifter[Huvudbokskod],SammanfattningMånadsutgifter[[#This Row],[Huvudbokskod]],SpecificeradeUtgifter[Fakturadatum],\">=\"&F$3,SpecificeradeUtgifter[Fakturadatum],\"<=\"&F$4)+SUMIFS(Övrigt[Checkbelopp],Övrigt[Huvudbokskod],SammanfattningMånadsutgifter[[#This Row],[Huvudbokskod]],Övrigt[Datum checkbegäran initierades],\">=\"&DATEVALUE(_ÅR&SammanfattningMånadsutgifter[[#Headers],[Mars]]&\" 1, \"),Övrigt[Datum checkbegäran initierades],\"<=\"&F$4)","v":{"v":0,"d":"0.00 kr"}},{"$f":"SUMIFS(SpecificeradeUtgifter[Checkbelopp],SpecificeradeUtgifter[Huvudbokskod],SammanfattningMånadsutgifter[[#This Row],[Huvudbokskod]],SpecificeradeUtgifter[Fakturadatum],\">=\"&G$3,SpecificeradeUtgifter[Fakturadatum],\"<=\"&G$4)+SUMIFS(Övrigt[Checkbelopp],Övrigt[Huvudbokskod],SammanfattningMånadsutgifter[[#This Row],[Huvudbokskod]],Övrigt[Datum checkbegäran initierades],\">=\"&DATEVALUE(_ÅR&SammanfattningMånadsutgifter[[#Headers],[April]]&\" 1, \"),Övrigt[Datum checkbegäran initierades],\"<=\"&G$4)","v":{"v":0,"d":"0.00 kr"}},{"$f":"SUMIFS(SpecificeradeUtgifter[Checkbelopp],SpecificeradeUtgifter[Huvudbokskod],SammanfattningMånadsutgifter[[#This Row],[Huvudbokskod]],SpecificeradeUtgifter[Fakturadatum],\">=\"&H$3,SpecificeradeUtgifter[Fakturadatum],\"<=\"&H$4)+SUMIFS(Övrigt[Checkbelopp],Övrigt[Huvudbokskod],SammanfattningMånadsutgifter[[#This Row],[Huvudbokskod]],Övrigt[Datum checkbegäran initierades],\">=\"&DATEVALUE(_ÅR&SammanfattningMånadsutgifter[[#Headers],[Maj]]&\" 1, \"),Övrigt[Datum checkbegäran initierades],\"<=\"&H$4)","v":{"v":0,"d":"0.00 kr"}},{"$f":"SUMIFS(SpecificeradeUtgifter[Checkbelopp],SpecificeradeUtgifter[Huvudbokskod],SammanfattningMånadsutgifter[[#This Row],[Huvudbokskod]],SpecificeradeUtgifter[Fakturadatum],\">=\"&I$3,SpecificeradeUtgifter[Fakturadatum],\"<=\"&I$4)+SUMIFS(Övrigt[Checkbelopp],Övrigt[Huvudbokskod],SammanfattningMånadsutgifter[[#This Row],[Huvudbokskod]],Övrigt[Datum checkbegäran initierades],\">=\"&DATEVALUE(_ÅR&SammanfattningMånadsutgifter[[#Headers],[Juni]]&\" 1, \"),Övrigt[Datum checkbegäran initierades],\"<=\"&I$4)","v":{"v":0,"d":"0.00 kr"}},{"$f":"SUMIFS(SpecificeradeUtgifter[Checkbelopp],SpecificeradeUtgifter[Huvudbokskod],SammanfattningMånadsutgifter[[#This Row],[Huvudbokskod]],SpecificeradeUtgifter[Fakturadatum],\">=\"&J$3,SpecificeradeUtgifter[Fakturadatum],\"<=\"&J$4)+SUMIFS(Övrigt[Checkbelopp],Övrigt[Huvudbokskod],SammanfattningMånadsutgifter[[#This Row],[Huvudbokskod]],Övrigt[Datum checkbegäran initierades],\">=\"&DATEVALUE(_ÅR&SammanfattningMånadsutgifter[[#Headers],[Juli]]&\" 1, \"),Övrigt[Datum checkbegäran initierades],\"<=\"&J$4)","v":{"v":0,"d":"0.00 kr"}},{"$f":"SUMIFS(SpecificeradeUtgifter[Checkbelopp],SpecificeradeUtgifter[Huvudbokskod],SammanfattningMånadsutgifter[[#This Row],[Huvudbokskod]],SpecificeradeUtgifter[Fakturadatum],\">=\"&K$3,SpecificeradeUtgifter[Fakturadatum],\"<=\"&K$4)+SUMIFS(Övrigt[Checkbelopp],Övrigt[Huvudbokskod],SammanfattningMånadsutgifter[[#This Row],[Huvudbokskod]],Övrigt[Datum checkbegäran initierades],\">=\"&DATEVALUE(_ÅR&SammanfattningMånadsutgifter[[#Headers],[Augusti]]&\" 1, \"),Övrigt[Datum checkbegäran initierades],\"<=\"&K$4)","v":{"v":0,"d":"0.00 kr"}},{"$f":"SUMIFS(SpecificeradeUtgifter[Checkbelopp],SpecificeradeUtgifter[Huvudbokskod],SammanfattningMånadsutgifter[[#This Row],[Huvudbokskod]],SpecificeradeUtgifter[Fakturadatum],\">=\"&L$3,SpecificeradeUtgifter[Fakturadatum],\"<=\"&L$4)+SUMIFS(Övrigt[Checkbelopp],Övrigt[Huvudbokskod],SammanfattningMånadsutgifter[[#This Row],[Huvudbokskod]],Övrigt[Datum checkbegäran initierades],\">=\"&DATEVALUE(_ÅR&SammanfattningMånadsutgifter[[#Headers],[September]]&\" 1, \"),Övrigt[Datum checkbegäran initierades],\"<=\"&L$4)","v":{"v":0,"d":"0.00 kr"}},{"$f":"SUMIFS(SpecificeradeUtgifter[Checkbelopp],SpecificeradeUtgifter[Huvudbokskod],SammanfattningMånadsutgifter[[#This Row],[Huvudbokskod]],SpecificeradeUtgifter[Fakturadatum],\">=\"&M$3,SpecificeradeUtgifter[Fakturadatum],\"<=\"&M$4)+SUMIFS(Övrigt[Checkbelopp],Övrigt[Huvudbokskod],SammanfattningMånadsutgifter[[#This Row],[Huvudbokskod]],Övrigt[Datum checkbegäran initierades],\">=\"&DATEVALUE(_ÅR&SammanfattningMånadsutgifter[[#Headers],[Oktober]]&\" 1, \"),Övrigt[Datum checkbegäran initierades],\"<=\"&M$4)","v":{"v":0,"d":"0.00 kr"}},{"$f":"SUMIFS(SpecificeradeUtgifter[Checkbelopp],SpecificeradeUtgifter[Huvudbokskod],SammanfattningMånadsutgifter[[#This Row],[Huvudbokskod]],SpecificeradeUtgifter[Fakturadatum],\">=\"&N$3,SpecificeradeUtgifter[Fakturadatum],\"<=\"&N$4)+SUMIFS(Övrigt[Checkbelopp],Övrigt[Huvudbokskod],SammanfattningMånadsutgifter[[#This Row],[Huvudbokskod]],Övrigt[Datum checkbegäran initierades],\">=\"&DATEVALUE(_ÅR&SammanfattningMånadsutgifter[[#Headers],[November]]&\" 1, \"),Övrigt[Datum checkbegäran initierades],\"<=\"&N$4)","v":{"v":0,"d":"0.00 kr"}},{"$f":"SUMIFS(SpecificeradeUtgifter[Checkbelopp],SpecificeradeUtgifter[Huvudbokskod],SammanfattningMånadsutgifter[[#This Row],[Huvudbokskod]],SpecificeradeUtgifter[Fakturadatum],\">=\"&O$3,SpecificeradeUtgifter[Fakturadatum],\"<=\"&O$4)+SUMIFS(Övrigt[Checkbelopp],Övrigt[Huvudbokskod],SammanfattningMånadsutgifter[[#This Row],[Huvudbokskod]],Övrigt[Datum checkbegäran initierades],\">=\"&DATEVALUE(_ÅR&SammanfattningMånadsutgifter[[#Headers],[December]]&\" 1, \"),Övrigt[Datum checkbegäran initierades],\"<=\"&O$4)","v":{"v":0,"d":"0.00 kr"}},{"$f":"SUM(SammanfattningMånadsutgifter[[#This Row],[Januari]:[December]])","v":{"v":0,"d":"0.00 kr"}}]
[null,12000,"Sponsring",{"$f":"SUMIFS(SpecificeradeUtgifter[Checkbelopp],SpecificeradeUtgifter[Huvudbokskod],SammanfattningMånadsutgifter[[#This Row],[Huvudbokskod]],SpecificeradeUtgifter[Fakturadatum],\">=\"&D$3,SpecificeradeUtgifter[Fakturadatum],\"<=\"&D$4)+SUMIFS(Övrigt[Checkbelopp],Övrigt[Huvudbokskod],SammanfattningMånadsutgifter[[#This Row],[Huvudbokskod]],Övrigt[Datum checkbegäran initierades],\">=\"&DATEVALUE(_ÅR&SammanfattningMånadsutgifter[[#Headers],[Januari]]&\" 1, \"),Övrigt[Datum checkbegäran initierades],\"<=\"&D$4)","v":{"v":0,"d":"0.00 kr"}},{"$f":"SUMIFS(SpecificeradeUtgifter[Checkbelopp],SpecificeradeUtgifter[Huvudbokskod],SammanfattningMånadsutgifter[[#This Row],[Huvudbokskod]],SpecificeradeUtgifter[Fakturadatum],\">=\"&E$3,SpecificeradeUtgifter[Fakturadatum],\"<=\"&E$4)+SUMIFS(Övrigt[Checkbelopp],Övrigt[Huvudbokskod],SammanfattningMånadsutgifter[[#This Row],[Huvudbokskod]],Övrigt[Datum checkbegäran initierades],\">=\"&DATEVALUE(_ÅR&SammanfattningMånadsutgifter[[#Headers],[Februari]]&\" 1, \"),Övrigt[Datum checkbegäran initierades],\"<=\"&E$4)","v":{"v":0,"d":"0.00 kr"}},{"$f":"SUMIFS(SpecificeradeUtgifter[Checkbelopp],SpecificeradeUtgifter[Huvudbokskod],SammanfattningMånadsutgifter[[#This Row],[Huvudbokskod]],SpecificeradeUtgifter[Fakturadatum],\">=\"&F$3,SpecificeradeUtgifter[Fakturadatum],\"<=\"&F$4)+SUMIFS(Övrigt[Checkbelopp],Övrigt[Huvudbokskod],SammanfattningMånadsutgifter[[#This Row],[Huvudbokskod]],Övrigt[Datum checkbegäran initierades],\">=\"&DATEVALUE(_ÅR&SammanfattningMånadsutgifter[[#Headers],[Mars]]&\" 1, \"),Övrigt[Datum checkbegäran initierades],\"<=\"&F$4)","v":{"v":0,"d":"0.00 kr"}},{"$f":"SUMIFS(SpecificeradeUtgifter[Checkbelopp],SpecificeradeUtgifter[Huvudbokskod],SammanfattningMånadsutgifter[[#This Row],[Huvudbokskod]],SpecificeradeUtgifter[Fakturadatum],\">=\"&G$3,SpecificeradeUtgifter[Fakturadatum],\"<=\"&G$4)+SUMIFS(Övrigt[Checkbelopp],Övrigt[Huvudbokskod],SammanfattningMånadsutgifter[[#This Row],[Huvudbokskod]],Övrigt[Datum checkbegäran initierades],\">=\"&DATEVALUE(_ÅR&SammanfattningMånadsutgifter[[#Headers],[April]]&\" 1, \"),Övrigt[Datum checkbegäran initierades],\"<=\"&G$4)","v":{"v":0,"d":"0.00 kr"}},{"$f":"SUMIFS(SpecificeradeUtgifter[Checkbelopp],SpecificeradeUtgifter[Huvudbokskod],SammanfattningMånadsutgifter[[#This Row],[Huvudbokskod]],SpecificeradeUtgifter[Fakturadatum],\">=\"&H$3,SpecificeradeUtgifter[Fakturadatum],\"<=\"&H$4)+SUMIFS(Övrigt[Checkbelopp],Övrigt[Huvudbokskod],SammanfattningMånadsutgifter[[#This Row],[Huvudbokskod]],Övrigt[Datum checkbegäran initierades],\">=\"&DATEVALUE(_ÅR&SammanfattningMånadsutgifter[[#Headers],[Maj]]&\" 1, \"),Övrigt[Datum checkbegäran initierades],\"<=\"&H$4)","v":{"v":0,"d":"0.00 kr"}},{"$f":"SUMIFS(SpecificeradeUtgifter[Checkbelopp],SpecificeradeUtgifter[Huvudbokskod],SammanfattningMånadsutgifter[[#This Row],[Huvudbokskod]],SpecificeradeUtgifter[Fakturadatum],\">=\"&I$3,SpecificeradeUtgifter[Fakturadatum],\"<=\"&I$4)+SUMIFS(Övrigt[Checkbelopp],Övrigt[Huvudbokskod],SammanfattningMånadsutgifter[[#This Row],[Huvudbokskod]],Övrigt[Datum checkbegäran initierades],\">=\"&DATEVALUE(_ÅR&SammanfattningMånadsutgifter[[#Headers],[Juni]]&\" 1, \"),Övrigt[Datum checkbegäran initierades],\"<=\"&I$4)","v":{"v":0,"d":"0.00 kr"}},{"$f":"SUMIFS(SpecificeradeUtgifter[Checkbelopp],SpecificeradeUtgifter[Huvudbokskod],SammanfattningMånadsutgifter[[#This Row],[Huvudbokskod]],SpecificeradeUtgifter[Fakturadatum],\">=\"&J$3,SpecificeradeUtgifter[Fakturadatum],\"<=\"&J$4)+SUMIFS(Övrigt[Checkbelopp],Övrigt[Huvudbokskod],SammanfattningMånadsutgifter[[#This Row],[Huvudbokskod]],Övrigt[Datum checkbegäran initierades],\">=\"&DATEVALUE(_ÅR&SammanfattningMånadsutgifter[[#Headers],[Juli]]&\" 1, \"),Övrigt[Datum checkbegäran initierades],\"<=\"&J$4)","v":{"v":0,"d":"0.00 kr"}},{"$f":"SUMIFS(SpecificeradeUtgifter[Checkbelopp],SpecificeradeUtgifter[Huvudbokskod],SammanfattningMånadsutgifter[[#This Row],[Huvudbokskod]],SpecificeradeUtgifter[Fakturadatum],\">=\"&K$3,SpecificeradeUtgifter[Fakturadatum],\"<=\"&K$4)+SUMIFS(Övrigt[Checkbelopp],Övrigt[Huvudbokskod],SammanfattningMånadsutgifter[[#This Row],[Huvudbokskod]],Övrigt[Datum checkbegäran initierades],\">=\"&DATEVALUE(_ÅR&SammanfattningMånadsutgifter[[#Headers],[Augusti]]&\" 1, \"),Övrigt[Datum checkbegäran initierades],\"<=\"&K$4)","v":{"v":0,"d":"0.00 kr"}},{"$f":"SUMIFS(SpecificeradeUtgifter[Checkbelopp],SpecificeradeUtgifter[Huvudbokskod],SammanfattningMånadsutgifter[[#This Row],[Huvudbokskod]],SpecificeradeUtgifter[Fakturadatum],\">=\"&L$3,SpecificeradeUtgifter[Fakturadatum],\"<=\"&L$4)+SUMIFS(Övrigt[Checkbelopp],Övrigt[Huvudbokskod],SammanfattningMånadsutgifter[[#This Row],[Huvudbokskod]],Övrigt[Datum checkbegäran initierades],\">=\"&DATEVALUE(_ÅR&SammanfattningMånadsutgifter[[#Headers],[September]]&\" 1, \"),Övrigt[Datum checkbegäran initierades],\"<=\"&L$4)","v":{"v":0,"d":"0.00 kr"}},{"$f":"SUMIFS(SpecificeradeUtgifter[Checkbelopp],SpecificeradeUtgifter[Huvudbokskod],SammanfattningMånadsutgifter[[#This Row],[Huvudbokskod]],SpecificeradeUtgifter[Fakturadatum],\">=\"&M$3,SpecificeradeUtgifter[Fakturadatum],\"<=\"&M$4)+SUMIFS(Övrigt[Checkbelopp],Övrigt[Huvudbokskod],SammanfattningMånadsutgifter[[#This Row],[Huvudbokskod]],Övrigt[Datum checkbegäran initierades],\">=\"&DATEVALUE(_ÅR&SammanfattningMånadsutgifter[[#Headers],[Oktober]]&\" 1, \"),Övrigt[Datum checkbegäran initierades],\"<=\"&M$4)","v":{"v":0,"d":"0.00 kr"}},{"$f":"SUMIFS(SpecificeradeUtgifter[Checkbelopp],SpecificeradeUtgifter[Huvudbokskod],SammanfattningMånadsutgifter[[#This Row],[Huvudbokskod]],SpecificeradeUtgifter[Fakturadatum],\">=\"&N$3,SpecificeradeUtgifter[Fakturadatum],\"<=\"&N$4)+SUMIFS(Övrigt[Checkbelopp],Övrigt[Huvudbokskod],SammanfattningMånadsutgifter[[#This Row],[Huvudbokskod]],Övrigt[Datum checkbegäran initierades],\">=\"&DATEVALUE(_ÅR&SammanfattningMånadsutgifter[[#Headers],[November]]&\" 1, \"),Övrigt[Datum checkbegäran initierades],\"<=\"&N$4)","v":{"v":0,"d":"0.00 kr"}},{"$f":"SUMIFS(SpecificeradeUtgifter[Checkbelopp],SpecificeradeUtgifter[Huvudbokskod],SammanfattningMånadsutgifter[[#This Row],[Huvudbokskod]],SpecificeradeUtgifter[Fakturadatum],\">=\"&O$3,SpecificeradeUtgifter[Fakturadatum],\"<=\"&O$4)+SUMIFS(Övrigt[Checkbelopp],Övrigt[Huvudbokskod],SammanfattningMånadsutgifter[[#This Row],[Huvudbokskod]],Övrigt[Datum checkbegäran initierades],\">=\"&DATEVALUE(_ÅR&SammanfattningMånadsutgifter[[#Headers],[December]]&\" 1, \"),Övrigt[Datum checkbegäran initierades],\"<=\"&O$4)","v":{"v":0,"d":"0.00 kr"}},{"$f":"SUM(SammanfattningMånadsutgifter[[#This Row],[Januari]:[December]])","v":{"v":0,"d":"0.00 kr"}}]
[null,"Summa",null,{"$f":"SUBTOTAL(109,SammanfattningMånadsutgifter[Januari])","v":{"v":0,"d":"0.00 kr"}},{"$f":"SUBTOTAL(109,SammanfattningMånadsutgifter[Februari])","v":{"v":0,"d":"0.00 kr"}},{"$f":"SUBTOTAL(109,SammanfattningMånadsutgifter[Mars])","v":{"v":0,"d":"0.00 kr"}},{"$f":"SUBTOTAL(109,SammanfattningMånadsutgifter[April])","v":{"v":0,"d":"0.00 kr"}},{"$f":"SUBTOTAL(109,SammanfattningMånadsutgifter[Maj])","v":{"v":0,"d":"0.00 kr"}},{"$f":"SUBTOTAL(109,SammanfattningMånadsutgifter[Juni])","v":{"v":0,"d":"0.00 kr"}},{"$f":"SUBTOTAL(109,SammanfattningMånadsutgifter[Juli])","v":{"v":0,"d":"0.00 kr"}},{"$f":"SUBTOTAL(109,SammanfattningMånadsutgifter[Augusti])","v":{"v":0,"d":"0.00 kr"}},{"$f":"SUBTOTAL(109,SammanfattningMånadsutgifter[September])","v":{"v":0,"d":"0.00 kr"}},{"$f":"SUBTOTAL(109,SammanfattningMånadsutgifter[Oktober])","v":{"v":0,"d":"0.00 kr"}},{"$f":"SUBTOTAL(109,SammanfattningMånadsutgifter[November])","v":{"v":0,"d":"0.00 kr"}},{"$f":"SUBTOTAL(109,SammanfattningMånadsutgifter[December])","v":{"v":0,"d":"0.00 kr"}},{"$f":"SUBTOTAL(109,SammanfattningMånadsutgifter[Summa])","v":{"v":0,"d":"0.00 kr"}}]

{"sheet":"SPECIFICERADE UTGIFTER","index":2,"n_rows":6,"n_cols":10,"rows_kept":6,"merged":[[1,1,1,9],[2,1,2,5],[2,6,2,9]]}
[null,"SAMMANFATTNING MÅNADSUTGIFTER","VÄLGÖRENHET OCH SPONSRING"]
[null,"SPECIFICERADE UTGIFTER"]
[null,"Utsnittet för att filtrera data efter Begärd av finns i den här cellen och utsnittet för att filtrera data efter Betalningsmottagare finns i cellen till höger.",{"$nulls":4},"Utsnitt för att filtrera data efter Betalningsmottagare finns i den här cellen."]
[null,"Huvudbokskod","Fakturadatum","Fakturanr","Begärd av","Checkbelopp","Betalningsmottagare","Checkanvändning","Distributionsmetod","Bokföringsdatum"]
[null,1000,"Datum",100,"Anthon Berggren",{"v":750.75,"d":"750.75 kr"},"Consolidated Messenger ","Adresshuvud","E-post","Datum"]
[null,7000,"Datum",101,"Viktor Magnusson",{"v":2500,"d":"2,500.00 kr"},"A. Datum Corporation ","2 stationära datorer","Kredit","Datum"]

{"sheet":"VÄLGÖRENHET OCH SPONSRING","index":3,"n_rows":6,"n_cols":12,"rows_kept":6,"merged":[[1,1,1,11],[2,1,2,5],[2,6,2,11]]}
[null,"SPECIFICERADE UTGIFTER"]
[null,"VÄLGÖRENHET OCH SPONSRING"]
[null,"Utsnittet för att filtrera data efter Begärd av finns i den här cellen och utsnittet för att filtrera data efter Betalningsmottagare finns i cellen till höger.",{"$nulls":4},"Utsnitt för att filtrera data efter Betalningsmottagare finns i den här cellen."]
[null,"Huvudbokskod","Datum checkbegäran initierades","Begärd av","Checkbelopp","Föregående års bidrag","Betalningsmottagare","Använt för","Signerade av","Kategori","Distributionsmetod","Bokföringsdatum"]
[null,12000,"Datum","Sanna Hansson",{"v":1000,"d":"1,000.00 kr"},{"v":12,"d":"12.00 kr"},"School of Fine Art ","Stipendier","Erna Nilsson","Konst","Check","Datum"]
[null,11000,"Datum","Sanna Hansson",{"v":2500,"d":"2,500.00 kr"},{"v":0,"d":"0.00 kr"},"Wingtip Toys ","Community","Malin Lind","Community","Check","Datum"]